Workbook

Sheet Instructions
A1: Manufacturer | B1: Tools
A2: File as | B2: T
A3: Product Code | B3: N
A4: CCTD Effective Date | B4: 4/1/26
A8: Enter your Company Name
B10: Click on "Index" to set the print area for the price list index
B11: Then you can send it to print
B14: Click on "Suggested Price List" to set the print area for Conestoga Tile's suggested price list.
B15: Then you can send it to print
B18: Enter your discount codes if you want a personal net cost sheet.
C20: Product
C21: Code | D21: Disc. %
C22: =+B3 -> N | D22: 0 | E22: This is a "NET" price list. 0% is the discount for this spreadsheet
B24: Click on "Your Cost" to set the print area for your personal cost report.
B25: Then you can send it to print
A28: Discount: | B28: To help establish your price list, enter the gross profit percent for each type of product.
B29: If you want to use Conestoga Tile's list price, leave them blank.
A31: Round Nickel: | B31: If you always want your price to round to the nearest nickel, enter "YES".
B32: If you enter "NO", it will NOT round to the nearest nickel.
A34: Ending Cents: | B34: If you always want your price to end with a certain cents, enter that cent value.
B35: If you leave it "blank" will NOT round to this cent value.
B37: GP Margin % for | C37: Group | D37: GP Margin | E37: Round Nickel | F37: add/subtract | G37: Ending Cents
B38: Gundlach - All | C38: GU | E38: No | F38: 0
B39: Hydra - All | C39: HY | E39: No | F39: 0
B40: IQ Tools - Saws/Cutters | C40: IQ1 | E40: No | F40: 0
B41: IQ Tools - All Other | C41: IQ | E41: No | F41: 0
B42: Progress Profiles - All | C42: PP | E42: No | F42: 0
B43: RTC - Saws/Cutters | C43: RS1 | E43: No | F43: 0
B44: RTC - All Other | C44: RS | E44: No | F44: 0
B45: Rubi - Saws/Cutters | C45: RU1 | E45: No | F45: 0
B46: Rubi - All Other | C46: RU | E46: No | F46: 0
B47: Schluter - Trowels | C47: SH | E47: No | F47: 0
B48: Troxell - Saws/Cutters | C48: TR1 | E48: No | F48: 0
B49: Troxell - All Other | C49: TR | E49: No | F49: 0
A51: If you want to manually adjust your price list, hit "F5" and go to "Customer_Cost" to manually adjust pricing.
A52: You can enter a value in the column labeled "Adj." to change your price manually.
B54: Click on "Your Price Calculation" to set the print area for your personal cost calculation report.
B55: Then you can send it to print
B58: Click on "Your Price List" to set the print area for your personal price list.
B59: Then you can send it to print
G60: Yes
A62: If you have any questions on how to best use this spreadsheet, please feel free to contact
A63: Jim Vogel at (800) 422-6860, ext. 4201 or via e-mail at jimvogel@cctd.com

Sheet Index
F3: ="File '"&Instructions!B2&"' - "&Instructions!B1 -> File 'T' - Tools
A6: ="Price List Index - "&Instructions!B4 -> Price List Index - 4/1/26
A11: Page | C11: Product Type | G11: Page | I11: Product Type
A48: This price list is available electronically on an Excel spreadsheet at www.conestogatile.com/pricelists.
A50: The spreadsheet has many special features to assist you. Apply your discount to generate your net costs for your purchasing department. Apply your standard gross margin percentage or custom prices to generate your own custom price list for your showroom. Print out individual price list for each series that can be attached to the back of your sample boards for easy reference.

Sheet Price List
F1: Our Part # | H1: Description | Q1: Mfg. | U1: =IF(Suggested="Yes",'Price List'!AC1,'Price List'!AI1) ->  | V1: EA | W1: =+Instructions!$B$3 -> N | Y1: =+Instructions!$D$22 -> 0 | Z1: =ROUND($AC1*(1-Y1)+0.004999,2) ->  | AB1: new | AD1: =+Y1 -> 0 | AE1: =+Z1 ->  | AF1: =(AI1-AE1)/AI1 ->  | AH1: =+C1 -> 0 | AI1: =SUM(AL1:AN1)+AG1 ->  | AL1: =ROUND(AE1/(1-VLOOKUP(AH1,Group,2,FALSE)),2) ->  | AM1: =IF(VLOOKUP(AH1,Group,3,FALSE)="YES",VLOOKUP(ROUND(ROUND(AL1,1)-AL1,2),Round,2,FALSE)+VLOOKUP(AH1,Group,4,FALSE),0) ->  | AN1: =IF(VLOOKUP(AH1,Group,5,FALSE)="",0,ROUND(AL1-0.04999,1)-AL1+AO1) ->  | AO1: =IF(VLOOKUP(AH1,Group,5,FALSE)="","",VLOOKUP(AH1,Group,5,FALSE)) ->  | AQ1: X
D2: Format | S2: Stock | T2: a | U2: 1000 | V2: ABC | Y2: 0.1 | Z2: 1000 | AB2: ABC | AC2: 1000 | AD2: 0.1 | AE2: 1000 | AF2: 0.1 | AG2: 10 | AI2: 1000 | AQ2: X
AQ3: X
Q4: ="File '"&Instructions!B2&"' - "&Instructions!B1 -> File 'T' - Tools | AI4: Retail Price Calculations | AQ4: X
V5: =+Instructions!B4 -> 4/1/26 | Y5: Cost | AG5: =TODAY() -> 2026-03-06 | AQ5: X
E6: ="Product Code '"&Instructions!B3&"'" -> Product Code 'N' | AQ6: X
AQ7: X
AQ8: X
A9: Mfg Item # | E9: Part Number | H9: Description | Q9: Manufacturer | S9: Stock | T9: Note | U9: Net Price | V9: U/M | W9: Code | Y9: Disc. | Z9: Net | AB9: Chg | AC9: Net Price | AD9: Disc | AE9: Act. Cost | AF9: GP% | AG9: Adj. | AH9: Group | AI9: Price | AL9: Calc Price | AM9: .05 Round | AN9: Cents | AO9: Round to | AQ9: X
E10: PRICING LISTED IS NET PRICING. TRADE DISCOUNTS DO NOT APPLY. | AQ10: X
E11: Pricing is subject to change without notice. | AQ11: X
AQ12: X
E13: Trowels | AQ13: X
AQ14: X
F15: U-Notched and Square-Notched Trowels | AQ15: X
A16: TR1414SQ | C16: RS | D16: RTC - All Other | F16: RSTRTR1414SQ | H16: 1/4 x 1/4 | J16: TR1414SQ | L16: - Soft Grip, Stainless Steel, Sq-Notch | Q16: RTC | S16: Stock | T16: new | U16: =IF(Suggested="Yes",'Price List'!AC16,'Price List'!AI16) -> 12.45 | V16: EA | W16: =+Instructions!$B$3 -> N | Y16: =+Instructions!$D$22 -> 0 | Z16: =ROUND($AC16*(1-Y16)+0.004999,2) -> 12.45 | AB16: new | AC16: 12.45 | AD16: =+Y16 -> 0 | AE16: 12.45 | AF16: =(AI16-AE16)/AI16 -> 0 | AH16: =+C16 -> RS | AI16: =SUM(AL16:AN16)+AG16 -> 12.45 | AL16: =ROUND(AE16/(1-VLOOKUP(AH16,Group,2,FALSE)),2) -> 12.45 | AM16: =IF(VLOOKUP(AH16,Group,3,FALSE)="YES",VLOOKUP(ROUND(ROUND(AL16,1)-AL16,2),Round,2,FALSE)+VLOOKUP(AH16,Group,4,FALSE),0) -> 0 | AN16: =IF(VLOOKUP(AH16,Group,5,FALSE)="",0,ROUND(AL16-0.04999,1)-AL16+AO16) -> 0 | AO16: =IF(VLOOKUP(AH16,Group,5,FALSE)="","",VLOOKUP(AH16,Group,5,FALSE)) ->  | AQ16: X
A17: TR1438U | C17: RS | D17: RTC - All Other | F17: RSTRTR1438U | H17: 3/8 x 1/4 | J17: TR1438U | L17: - Soft Grip, Stainless Steel, U-Notch | Q17: RTC | S17: Stock | T17: new | U17: =IF(Suggested="Yes",'Price List'!AC17,'Price List'!AI17) -> 12.45 | V17: EA | W17: =+Instructions!$B$3 -> N | Y17: =+Instructions!$D$22 -> 0 | Z17: =ROUND($AC17*(1-Y17)+0.004999,2) -> 12.45 | AB17: new | AC17: 12.45 | AD17: =+Y17 -> 0 | AE17: =+Z17 -> 12.45 | AF17: =(AI17-AE17)/AI17 -> 0 | AH17: =+C17 -> RS | AI17: =SUM(AL17:AN17)+AG17 -> 12.45 | AL17: =ROUND(AE17/(1-VLOOKUP(AH17,Group,2,FALSE)),2) -> 12.45 | AM17: =IF(VLOOKUP(AH17,Group,3,FALSE)="YES",VLOOKUP(ROUND(ROUND(AL17,1)-AL17,2),Round,2,FALSE)+VLOOKUP(AH17,Group,4,FALSE),0) -> 0 | AN17: =IF(VLOOKUP(AH17,Group,5,FALSE)="",0,ROUND(AL17-0.04999,1)-AL17+AO17) -> 0 | AO17: =IF(VLOOKUP(AH17,Group,5,FALSE)="","",VLOOKUP(AH17,Group,5,FALSE)) ->  | AQ17: X
A18: TR1412U | C18: RS | D18: RTC - All Other | F18: RSTRTR1412U | H18: 1/2 x 1/4 | J18: TR1412U | L18: - Soft Grip, Stainless Steel, U-Notch | Q18: RTC | S18: Stock | T18: new | U18: =IF(Suggested="Yes",'Price List'!AC18,'Price List'!AI18) -> 12.45 | V18: EA | W18: =+Instructions!$B$3 -> N | Y18: =+Instructions!$D$22 -> 0 | Z18: =ROUND($AC18*(1-Y18)+0.004999,2) -> 12.45 | AB18: new | AC18: 12.45 | AD18: =+Y18 -> 0 | AE18: 12.45 | AF18: =(AI18-AE18)/AI18 -> 0 | AH18: =+C18 -> RS | AI18: =SUM(AL18:AN18)+AG18 -> 12.45 | AL18: =ROUND(AE18/(1-VLOOKUP(AH18,Group,2,FALSE)),2) -> 12.45 | AM18: =IF(VLOOKUP(AH18,Group,3,FALSE)="YES",VLOOKUP(ROUND(ROUND(AL18,1)-AL18,2),Round,2,FALSE)+VLOOKUP(AH18,Group,4,FALSE),0) -> 0 | AN18: =IF(VLOOKUP(AH18,Group,5,FALSE)="",0,ROUND(AL18-0.04999,1)-AL18+AO18) -> 0 | AO18: =IF(VLOOKUP(AH18,Group,5,FALSE)="","",VLOOKUP(AH18,Group,5,FALSE)) ->  | AQ18: X
A19: TR1212SQ | C19: RS | D19: RTC - All Other | F19: RSTRTR1212SQ | H19: 1/2 x 1/2 | J19: TR1212SQ | L19: - Soft Grip, Stainless Steel, Sq-Notch | Q19: RTC | S19: Stock | T19: new | U19: =IF(Suggested="Yes",'Price List'!AC19,'Price List'!AI19) -> 12.45 | V19: EA | W19: =+Instructions!$B$3 -> N | Y19: =+Instructions!$D$22 -> 0 | Z19: =ROUND($AC19*(1-Y19)+0.004999,2) -> 12.45 | AB19: new | AC19: 12.45 | AD19: =+Y19 -> 0 | AE19: 12.45 | AF19: =(AI19-AE19)/AI19 -> 0 | AH19: =+C19 -> RS | AI19: =SUM(AL19:AN19)+AG19 -> 12.45 | AL19: =ROUND(AE19/(1-VLOOKUP(AH19,Group,2,FALSE)),2) -> 12.45 | AM19: =IF(VLOOKUP(AH19,Group,3,FALSE)="YES",VLOOKUP(ROUND(ROUND(AL19,1)-AL19,2),Round,2,FALSE)+VLOOKUP(AH19,Group,4,FALSE),0) -> 0 | AN19: =IF(VLOOKUP(AH19,Group,5,FALSE)="",0,ROUND(AL19-0.04999,1)-AL19+AO19) -> 0 | AO19: =IF(VLOOKUP(AH19,Group,5,FALSE)="","",VLOOKUP(AH19,Group,5,FALSE)) ->  | AQ19: X
AQ20: X
F21: Euro-Notched - Trowels | AQ21: X
A22: TRTIGER | C22: RS | D22: RTC - All Other | F22: RSTRTRTIGER | H22: Euro-Notch | J22: TRTIGER | L22: - Soft Grip, Stainless Steel | Q22: RTC | S22: Stock | T22: new | U22: =IF(Suggested="Yes",'Price List'!AC22,'Price List'!AI22) -> 12.45 | V22: EA | W22: =+Instructions!$B$3 -> N | Y22: =+Instructions!$D$22 -> 0 | Z22: =ROUND($AC22*(1-Y22)+0.004999,2) -> 12.45 | AB22: new | AC22: 12.45 | AD22: =+Y22 -> 0 | AE22: =+Z22 -> 12.45 | AF22: =(AI22-AE22)/AI22 -> 0 | AH22: =+C22 -> RS | AI22: =SUM(AL22:AN22)+AG22 -> 12.45 | AL22: =ROUND(AE22/(1-VLOOKUP(AH22,Group,2,FALSE)),2) -> 12.45 | AM22: =IF(VLOOKUP(AH22,Group,3,FALSE)="YES",VLOOKUP(ROUND(ROUND(AL22,1)-AL22,2),Round,2,FALSE)+VLOOKUP(AH22,Group,4,FALSE),0) -> 0 | AN22: =IF(VLOOKUP(AH22,Group,5,FALSE)="",0,ROUND(AL22-0.04999,1)-AL22+AO22) -> 0 | AO22: =IF(VLOOKUP(AH22,Group,5,FALSE)="","",VLOOKUP(AH22,Group,5,FALSE)) ->  | AQ22: X
AQ23: X
F24: Schluter Sized - Trowels | AQ24: X
A25: TRL-KER | C25: SH | D25: Schluter - Trowels | F25: SHTRLKER6 | H25: 1/8 x 1/8 | J25: TRL-KER | L25: Schluter Kerdi trowel | Q25: Schluter | U25: =IF(Suggested="Yes",'Price List'!AC25,'Price List'!AI25) -> 25.7 | V25: EA | W25: =+Instructions!$B$3 -> N | Y25: =+Instructions!$D$22 -> 0 | Z25: =ROUND($AC25*(1-Y25)+0.004999,2) -> 25.7 | AB25: YES | AC25: 25.7 | AD25: =+Y25 -> 0 | AE25: =+Z25 -> 25.7 | AF25: =(AI25-AE25)/AI25 -> 0 | AH25: =+C25 -> SH | AI25: =SUM(AL25:AN25)+AG25 -> 25.7 | AL25: =ROUND(AE25/(1-VLOOKUP(AH25,Group,2,FALSE)),2) -> 25.7 | AM25: =IF(VLOOKUP(AH25,Group,3,FALSE)="YES",VLOOKUP(ROUND(ROUND(AL25,1)-AL25,2),Round,2,FALSE)+VLOOKUP(AH25,Group,4,FALSE),0) -> 0 | AN25: =IF(VLOOKUP(AH25,Group,5,FALSE)="",0,ROUND(AL25-0.04999,1)-AL25+AO25) -> 0 | AO25: =IF(VLOOKUP(AH25,Group,5,FALSE)="","",VLOOKUP(AH25,Group,5,FALSE)) ->  | AQ25: X
A26: 14-10SS | C26: TR | D26: Troxell - All Other | F26: TX1410SS | H26: 1/8 x 1/8 | J26: 14-10SS | L26: Kerdi-Size Trowel, Soft Grip, Stainless | Q26: Troxell | S26: Stock | U26: =IF(Suggested="Yes",'Price List'!AC26,'Price List'!AI26) -> 13.95 | V26: EA | W26: =+Instructions!$B$3 -> N | Y26: =+Instructions!$D$22 -> 0 | Z26: =ROUND($AC26*(1-Y26)+0.004999,2) -> 13.95 | AB26: YES | AC26: 13.95 | AD26: =+Y26 -> 0 | AE26: =+Z26 -> 13.95 | AF26: =(AI26-AE26)/AI26 -> 0 | AH26: =+C26 -> TR | AI26: =SUM(AL26:AN26)+AG26 -> 13.95 | AL26: =ROUND(AE26/(1-VLOOKUP(AH26,Group,2,FALSE)),2) -> 13.95 | AM26: =IF(VLOOKUP(AH26,Group,3,FALSE)="YES",VLOOKUP(ROUND(ROUND(AL26,1)-AL26,2),Round,2,FALSE)+VLOOKUP(AH26,Group,4,FALSE),0) -> 0 | AN26: =IF(VLOOKUP(AH26,Group,5,FALSE)="",0,ROUND(AL26-0.04999,1)-AL26+AO26) -> 0 | AO26: =IF(VLOOKUP(AH26,Group,5,FALSE)="","",VLOOKUP(AH26,Group,5,FALSE)) ->  | AQ26: X
AQ27: X
A28: TRL-DIT | C28: SH | D28: Schluter - Trowels | F28: SHTRLDIT6 | H28: 11/64 x 11/64 | J28: TRL-DIT | L28: Schluter Ditra trowel | Q28: Schluter | U28: =IF(Suggested="Yes",'Price List'!AC28,'Price List'!AI28) -> 25.7 | V28: EA | W28: =+Instructions!$B$3 -> N | Y28: =+Instructions!$D$22 -> 0 | Z28: =ROUND($AC28*(1-Y28)+0.004999,2) -> 25.7 | AB28: YES | AC28: 25.7 | AD28: =+Y28 -> 0 | AE28: =+Z28 -> 25.7 | AF28: =(AI28-AE28)/AI28 -> 0 | AH28: =+C28 -> SH | AI28: =SUM(AL28:AN28)+AG28 -> 25.7 | AL28: =ROUND(AE28/(1-VLOOKUP(AH28,Group,2,FALSE)),2) -> 25.7 | AM28: =IF(VLOOKUP(AH28,Group,3,FALSE)="YES",VLOOKUP(ROUND(ROUND(AL28,1)-AL28,2),Round,2,FALSE)+VLOOKUP(AH28,Group,4,FALSE),0) -> 0 | AN28: =IF(VLOOKUP(AH28,Group,5,FALSE)="",0,ROUND(AL28-0.04999,1)-AL28+AO28) -> 0 | AO28: =IF(VLOOKUP(AH28,Group,5,FALSE)="","",VLOOKUP(AH28,Group,5,FALSE)) ->  | AQ28: X
A29: 14-20SS | C29: TR | D29: Troxell - All Other | F29: TX1420SS | H29: 11/64 x 11/64 | J29: 14-20SS | L29: Ditra-Size Trowel, Soft Grip, Stainless | Q29: Troxell | S29: Stock | U29: =IF(Suggested="Yes",'Price List'!AC29,'Price List'!AI29) -> 13.95 | V29: EA | W29: =+Instructions!$B$3 -> N | Y29: =+Instructions!$D$22 -> 0 | Z29: =ROUND($AC29*(1-Y29)+0.004999,2) -> 13.95 | AB29: YES | AC29: 13.95 | AD29: =+Y29 -> 0 | AE29: =+Z29 -> 13.95 | AF29: =(AI29-AE29)/AI29 -> 0 | AH29: =+C29 -> TR | AI29: =SUM(AL29:AN29)+AG29 -> 13.95 | AL29: =ROUND(AE29/(1-VLOOKUP(AH29,Group,2,FALSE)),2) -> 13.95 | AM29: =IF(VLOOKUP(AH29,Group,3,FALSE)="YES",VLOOKUP(ROUND(ROUND(AL29,1)-AL29,2),Round,2,FALSE)+VLOOKUP(AH29,Group,4,FALSE),0) -> 0 | AN29: =IF(VLOOKUP(AH29,Group,5,FALSE)="",0,ROUND(AL29-0.04999,1)-AL29+AO29) -> 0 | AO29: =IF(VLOOKUP(AH29,Group,5,FALSE)="","",VLOOKUP(AH29,Group,5,FALSE)) ->  | AQ29: X
AQ30: X
A31: TRL-DHXL | C31: SH | D31: Schluter - Trowels | F31: SHTRLDHXL | H31: 1/4 x 1/4 | J31: TRL-DHXL | L31: Schluter DitraXL trowel | Q31: Schluter | U31: =IF(Suggested="Yes",'Price List'!AC31,'Price List'!AI31) -> 25.7 | V31: EA | W31: =+Instructions!$B$3 -> N | Y31: =+Instructions!$D$22 -> 0 | Z31: =ROUND($AC31*(1-Y31)+0.004999,2) -> 25.7 | AB31: YES | AC31: 25.7 | AD31: =+Y31 -> 0 | AE31: =+Z31 -> 25.7 | AF31: =(AI31-AE31)/AI31 -> 0 | AH31: =+C31 -> SH | AI31: =SUM(AL31:AN31)+AG31 -> 25.7 | AL31: =ROUND(AE31/(1-VLOOKUP(AH31,Group,2,FALSE)),2) -> 25.7 | AM31: =IF(VLOOKUP(AH31,Group,3,FALSE)="YES",VLOOKUP(ROUND(ROUND(AL31,1)-AL31,2),Round,2,FALSE)+VLOOKUP(AH31,Group,4,FALSE),0) -> 0 | AN31: =IF(VLOOKUP(AH31,Group,5,FALSE)="",0,ROUND(AL31-0.04999,1)-AL31+AO31) -> 0 | AO31: =IF(VLOOKUP(AH31,Group,5,FALSE)="","",VLOOKUP(AH31,Group,5,FALSE)) ->  | AQ31: X
A32: TR1414SQ | C32: RS | D32: RTC - All Other | F32: RSTRTR1414SQ | H32: 1/4 x 1/4 | J32: TR1414SQ | L32: - Soft Grip, Stainless Steel, Sq-Notch | Q32: RTC | S32: Stock | T32: new | U32: =IF(Suggested="Yes",'Price List'!AC32,'Price List'!AI32) -> 12.45 | V32: EA | W32: =+Instructions!$B$3 -> N | Y32: =+Instructions!$D$22 -> 0 | Z32: =ROUND($AC32*(1-Y32)+0.004999,2) -> 12.45 | AB32: new | AC32: 12.45 | AD32: =+Y32 -> 0 | AE32: =+Z32 -> 12.45 | AF32: =(AI32-AE32)/AI32 -> 0 | AH32: =+C32 -> RS | AI32: =SUM(AL32:AN32)+AG32 -> 12.45 | AL32: =ROUND(AE32/(1-VLOOKUP(AH32,Group,2,FALSE)),2) -> 12.45 | AM32: =IF(VLOOKUP(AH32,Group,3,FALSE)="YES",VLOOKUP(ROUND(ROUND(AL32,1)-AL32,2),Round,2,FALSE)+VLOOKUP(AH32,Group,4,FALSE),0) -> 0 | AN32: =IF(VLOOKUP(AH32,Group,5,FALSE)="",0,ROUND(AL32-0.04999,1)-AL32+AO32) -> 0 | AO32: =IF(VLOOKUP(AH32,Group,5,FALSE)="","",VLOOKUP(AH32,Group,5,FALSE)) ->  | AQ32: X
AQ33: X
F34: V-Notched - Trowels | AQ34: X
A35: TR14316V | C35: RS | D35: RTC - All Other | F35: RSTRTR14316V | H35: 3/16 x 1/4 | J35: TR14316V | L35: - Soft Grip, Stainless Steel, V-Notch | Q35: RTC | S35: Stock | T35: new | U35: =IF(Suggested="Yes",'Price List'!AC35,'Price List'!AI35) -> 12.45 | V35: EA | W35: =+Instructions!$B$3 -> N | Y35: =+Instructions!$D$22 -> 0 | Z35: =ROUND($AC35*(1-Y35)+0.004999,2) -> 12.45 | AB35: new | AC35: 12.45 | AD35: =+Y35 -> 0 | AE35: 12.45 | AF35: =(AI35-AE35)/AI35 -> 0 | AH35: =+C35 -> RS | AI35: =SUM(AL35:AN35)+AG35 -> 12.45 | AL35: =ROUND(AE35/(1-VLOOKUP(AH35,Group,2,FALSE)),2) -> 12.45 | AM35: =IF(VLOOKUP(AH35,Group,3,FALSE)="YES",VLOOKUP(ROUND(ROUND(AL35,1)-AL35,2),Round,2,FALSE)+VLOOKUP(AH35,Group,4,FALSE),0) -> 0 | AN35: =IF(VLOOKUP(AH35,Group,5,FALSE)="",0,ROUND(AL35-0.04999,1)-AL35+AO35) -> 0 | AO35: =IF(VLOOKUP(AH35,Group,5,FALSE)="","",VLOOKUP(AH35,Group,5,FALSE)) ->  | AQ35: X
AQ36: X
F37: Margin Trowels | AQ37: X
A38: TRM52 | C38: RS | D38: RTC - All Other | F38: RSTRTRM52 | H38: 5" x 2" | J38: TRM52 | L38: - Soft Grip, Carbon Steel | Q38: RTC | S38: Stock | T38: new | U38: =IF(Suggested="Yes",'Price List'!AC38,'Price List'!AI38) -> 5.85 | V38: EA | W38: =+Instructions!$B$3 -> N | Y38: =+Instructions!$D$22 -> 0 | Z38: =ROUND($AC38*(1-Y38)+0.004999,2) -> 5.85 | AB38: new | AC38: 5.85 | AD38: =+Y38 -> 0 | AE38: =+Z38 -> 5.85 | AF38: =(AI38-AE38)/AI38 -> 0 | AH38: =+C38 -> RS | AI38: =SUM(AL38:AN38)+AG38 -> 5.85 | AL38: =ROUND(AE38/(1-VLOOKUP(AH38,Group,2,FALSE)),2) -> 5.85 | AM38: =IF(VLOOKUP(AH38,Group,3,FALSE)="YES",VLOOKUP(ROUND(ROUND(AL38,1)-AL38,2),Round,2,FALSE)+VLOOKUP(AH38,Group,4,FALSE),0) -> 0 | AN38: =IF(VLOOKUP(AH38,Group,5,FALSE)="",0,ROUND(AL38-0.04999,1)-AL38+AO38) -> 0 | AO38: =IF(VLOOKUP(AH38,Group,5,FALSE)="","",VLOOKUP(AH38,Group,5,FALSE)) ->  | AQ38: X
C39: TR | D39: Troxell - All Other | F39: TX15-582 | H39: 8" x 2" | J39: 15-582 | L39: - Soft Grip, Stainless Steel | Q39: Troxell | S39: Stock | U39: =IF(Suggested="Yes",'Price List'!AC39,'Price List'!AI39) -> 8.45 | V39: EA | W39: =+Instructions!$B$3 -> N | Y39: =+Instructions!$D$22 -> 0 | Z39: =ROUND($AC39*(1-Y39)+0.004999,2) -> 8.45 | AC39: 8.45 | AD39: =+Y39 -> 0 | AE39: 8.45 | AF39: 0 | AH39: =+C39 -> TR | AI39: 8.45 | AL39: 8.45 | AM39: 0 | AN39: 0 | AQ39: X
AQ40: X
F41: Bucket Trowels | AQ41: X
A42: TR7BUCKET | C42: RS | D42: RTC - All Other | F42: RSTRTR7BUCKET | H42: 7" Bucket Trowel | J42: TR7BUCKET | L42: - Soft Grip, Carbon Steel | Q42: RTC | S42: Stock | T42: new | U42: =IF(Suggested="Yes",'Price List'!AC42,'Price List'!AI42) -> 10.6 | V42: EA | W42: =+Instructions!$B$3 -> N | Y42: =+Instructions!$D$22 -> 0 | Z42: =ROUND($AC42*(1-Y42)+0.004999,2) -> 10.6 | AB42: new | AC42: 10.6 | AD42: =+Y42 -> 0 | AE42: =+Z42 -> 10.6 | AF42: 0 | AH42: =+C42 -> RS | AI42: 10.6 | AL42: 10.6 | AM42: 0 | AN42: 0 | AQ42: X
AQ43: X
F44: Trowel/Float Reach Support | AQ44: X
A45: LTSPIDER | C45: RS | D45: RTC - All Other | F45: RSTRLTSPIDER | H45: LTSPIDER | J45: Ergonomic Spider Back Saving Tool - Reach Support | Q45: RTC | S45: Stock | T45: new | U45: =IF(Suggested="Yes",'Price List'!AC45,'Price List'!AI45) -> 19.25 | V45: EA | W45: =+Instructions!$B$3 -> N | Y45: =+Instructions!$D$22 -> 0 | Z45: =ROUND($AC45*(1-Y45)+0.004999,2) -> 19.25 | AB45: new | AC45: 19.25 | AD45: =+Y45 -> 0 | AE45: =+Z45 -> 19.25 | AF45: =(AI45-AE45)/AI45 -> 0 | AH45: =+C45 -> RS | AI45: =SUM(AL45:AN45)+AG45 -> 19.25 | AL45: =ROUND(AE45/(1-VLOOKUP(AH45,Group,2,FALSE)),2) -> 19.25 | AM45: =IF(VLOOKUP(AH45,Group,3,FALSE)="YES",VLOOKUP(ROUND(ROUND(AL45,1)-AL45,2),Round,2,FALSE)+VLOOKUP(AH45,Group,4,FALSE),0) -> 0 | AN45: =IF(VLOOKUP(AH45,Group,5,FALSE)="",0,ROUND(AL45-0.04999,1)-AL45+AO45) -> 0 | AO45: =IF(VLOOKUP(AH45,Group,5,FALSE)="","",VLOOKUP(AH45,Group,5,FALSE)) ->  | AQ45: X
AQ46: X
E47: Floats | AQ47: X
AQ48: X
F49: Regular Floats | AQ49: X
AQ50: X
A51: 09-43P | C51: TR | D51: Troxell - All Other | F51: TX0943P | H51: 4" x 9" | J51: 09-43P | L51: Super-Grip PROFLEX Gum Float | Q51: Troxell | S51: Stock | U51: =IF(Suggested="Yes",'Price List'!AC51,'Price List'!AI51) -> 16.75 | V51: EA | W51: =+Instructions!$B$3 -> N | Y51: =+Instructions!$D$22 -> 0 | Z51: =ROUND($AC51*(1-Y51)+0.004999,2) -> 16.75 | AB51: YES | AC51: 16.75 | AD51: =+Y51 -> 0 | AE51: 16.75 | AF51: =(AI51-AE51)/AI51 -> 0 | AH51: =+C51 -> TR | AI51: =SUM(AL51:AN51)+AG51 -> 16.75 | AL51: =ROUND(AE51/(1-VLOOKUP(AH51,Group,2,FALSE)),2) -> 16.75 | AM51: =IF(VLOOKUP(AH51,Group,3,FALSE)="YES",VLOOKUP(ROUND(ROUND(AL51,1)-AL51,2),Round,2,FALSE)+VLOOKUP(AH51,Group,4,FALSE),0) -> 0 | AN51: =IF(VLOOKUP(AH51,Group,5,FALSE)="",0,ROUND(AL51-0.04999,1)-AL51+AO51) -> 0 | AO51: =IF(VLOOKUP(AH51,Group,5,FALSE)="","",VLOOKUP(AH51,Group,5,FALSE)) ->  | AQ51: X
A52: 84926 | C52: RU | D52: Rubi - All Other | F52: RU84926 | H52: 4" x 9" | J52: 84926 | L52: Pro Rubber Grout Float - #43 | Q52: Rubi | S52: Stock | T52: new | U52: =IF(Suggested="Yes",'Price List'!AC52,'Price List'!AI52) -> 15.15 | V52: EA | W52: =+Instructions!$B$3 -> N | Y52: =+Instructions!$D$22 -> 0 | Z52: =ROUND($AC52*(1-Y52)+0.004999,2) -> 15.15 | AB52: new | AC52: 15.15 | AD52: =+Y52 -> 0 | AE52: =+Z52 -> 15.15 | AF52: =(AI52-AE52)/AI52 -> 0 | AH52: =+C52 -> RU | AI52: =SUM(AL52:AN52)+AG52 -> 15.15 | AL52: =ROUND(AE52/(1-VLOOKUP(AH52,Group,2,FALSE)),2) -> 15.15 | AM52: =IF(VLOOKUP(AH52,Group,3,FALSE)="YES",VLOOKUP(ROUND(ROUND(AL52,1)-AL52,2),Round,2,FALSE)+VLOOKUP(AH52,Group,4,FALSE),0) -> 0 | AN52: =IF(VLOOKUP(AH52,Group,5,FALSE)="",0,ROUND(AL52-0.04999,1)-AL52+AO52) -> 0 | AO52: =IF(VLOOKUP(AH52,Group,5,FALSE)="","",VLOOKUP(AH52,Group,5,FALSE)) ->  | AQ52: X
AQ53: X
F54: Epoxy Floats | AQ54: X
A55: 09-KF | C55: TR | D55: Troxell - All Other | F55: TX09KF | H55: 4" x 9" | J55: 09-KF | L55: Super-Grip PROFLEX Yellow Float | Q55: Troxell | S55: Stock | U55: =IF(Suggested="Yes",'Price List'!AC55,'Price List'!AI55) -> 21.8 | V55: EA | W55: =+Instructions!$B$3 -> N | Y55: =+Instructions!$D$22 -> 0 | Z55: =ROUND($AC55*(1-Y55)+0.004999,2) -> 21.8 | AC55: 21.8 | AD55: =+Y55 -> 0 | AE55: 21.8 | AF55: =(AI55-AE55)/AI55 -> 0 | AH55: =+C55 -> TR | AI55: =SUM(AL55:AN55)+AG55 -> 21.8 | AL55: =ROUND(AE55/(1-VLOOKUP(AH55,Group,2,FALSE)),2) -> 21.8 | AM55: =IF(VLOOKUP(AH55,Group,3,FALSE)="YES",VLOOKUP(ROUND(ROUND(AL55,1)-AL55,2),Round,2,FALSE)+VLOOKUP(AH55,Group,4,FALSE),0) -> 0 | AN55: =IF(VLOOKUP(AH55,Group,5,FALSE)="",0,ROUND(AL55-0.04999,1)-AL55+AO55) -> 0 | AO55: =IF(VLOOKUP(AH55,Group,5,FALSE)="","",VLOOKUP(AH55,Group,5,FALSE)) ->  | AQ55: X
AQ56: X
F57: Slim Floats | I57: (Ideal for getting under tight spaces such as toe-kicks) | AQ57: X
A58: GFSLIM | C58: RS | D58: RTC - All Other | F58: RSFLGFSLIM | H58: 3" x 15" | J58: GFSLIM | L58: Red Rubber Slim Grout Float | Q58: RTC | S58: Stock | T58: new | U58: =IF(Suggested="Yes",'Price List'!AC58,'Price List'!AI58) -> 19.3 | V58: EA | W58: =+Instructions!$B$3 -> N | Y58: =+Instructions!$D$22 -> 0 | Z58: =ROUND($AC58*(1-Y58)+0.004999,2) -> 19.3 | AB58: new | AC58: 19.3 | AD58: =+Y58 -> 0 | AE58: =+Z58 -> 19.3 | AF58: =(AI58-AE58)/AI58 -> 0 | AH58: =+C58 -> RS | AI58: =SUM(AL58:AN58)+AG58 -> 19.3 | AL58: =ROUND(AE58/(1-VLOOKUP(AH58,Group,2,FALSE)),2) -> 19.3 | AM58: =IF(VLOOKUP(AH58,Group,3,FALSE)="YES",VLOOKUP(ROUND(ROUND(AL58,1)-AL58,2),Round,2,FALSE)+VLOOKUP(AH58,Group,4,FALSE),0) -> 0 | AN58: =IF(VLOOKUP(AH58,Group,5,FALSE)="",0,ROUND(AL58-0.04999,1)-AL58+AO58) -> 0 | AO58: =IF(VLOOKUP(AH58,Group,5,FALSE)="","",VLOOKUP(AH58,Group,5,FALSE)) ->  | AQ58: X
AQ59: X
E60: Grouting Clean Up Systems / Sponges | AQ60: X
AQ61: X
F62: Electric Sponge Wringer System | AQ62: X
A63: WRINGO | C63: RS1 | D63: RTC - Saws/Cutters | F63: RSSGWRINGO | H63: WRINGO - WrinGo Electric Sponge Wringer | Q63: RTC | S63: Stock | T63: new | U63: =IF(Suggested="Yes",'Price List'!AC63,'Price List'!AI63) -> 469 | V63: EA | W63: =+Instructions!$B$3 -> N | Y63: =+Instructions!$D$22 -> 0 | Z63: =ROUND($AC63*(1-Y63)+0.004999,2) -> 469 | AB63: new | AC63: 469 | AD63: =+Y63 -> 0 | AE63: =+Z63 -> 469 | AF63: =(AI63-AE63)/AI63 -> 0 | AH63: =+C63 -> RS1 | AI63: =SUM(AL63:AN63)+AG63 -> 469 | AL63: =ROUND(AE63/(1-VLOOKUP(AH63,Group,2,FALSE)),2) -> 469 | AM63: =IF(VLOOKUP(AH63,Group,3,FALSE)="YES",VLOOKUP(ROUND(ROUND(AL63,1)-AL63,2),Round,2,FALSE)+VLOOKUP(AH63,Group,4,FALSE),0) -> 0 | AN63: =IF(VLOOKUP(AH63,Group,5,FALSE)="",0,ROUND(AL63-0.04999,1)-AL63+AO63) -> 0 | AO63: =IF(VLOOKUP(AH63,Group,5,FALSE)="","",VLOOKUP(AH63,Group,5,FALSE)) ->  | AQ63: X
I64: Save Time and Save your Hands as the WrinGo preps your sponges for use
AQ65: X
F66: Roller Grout Bucket | AQ66: X
A67: WBHR | C67: RS | D67: RTC - All Other | F67: RSSGWBHR | H67: WBHR High Roller Grout Bucket Kit (include Sponge Float w/ Holder) | Q67: RTC | S67: Stock | T67: new | U67: =IF(Suggested="Yes",'Price List'!AC67,'Price List'!AI67) -> 53.85 | V67: EA | W67: =+Instructions!$B$3 -> N | Y67: =+Instructions!$D$22 -> 0 | Z67: =ROUND($AC67*(1-Y67)+0.004999,2) -> 53.85 | AB67: new | AC67: 53.85 | AD67: =+Y67 -> 0 | AE67: =+Z67 -> 53.85 | AF67: =(AI67-AE67)/AI67 -> 0 | AH67: =+C67 -> RS | AI67: =SUM(AL67:AN67)+AG67 -> 53.85 | AL67: =ROUND(AE67/(1-VLOOKUP(AH67,Group,2,FALSE)),2) -> 53.85 | AM67: =IF(VLOOKUP(AH67,Group,3,FALSE)="YES",VLOOKUP(ROUND(ROUND(AL67,1)-AL67,2),Round,2,FALSE)+VLOOKUP(AH67,Group,4,FALSE),0) -> 0 | AN67: =IF(VLOOKUP(AH67,Group,5,FALSE)="",0,ROUND(AL67-0.04999,1)-AL67+AO67) -> 0 | AO67: =IF(VLOOKUP(AH67,Group,5,FALSE)="","",VLOOKUP(AH67,Group,5,FALSE)) ->  | AQ67: X
A68: WBSF | C68: RS | D68: RTC - All Other | F68: RSSGWBSF | I68: WBSF | K68: High Roller Sponge Float w/ Cuts | Q68: RTC | S68: Stock | T68: new | U68: =IF(Suggested="Yes",'Price List'!AC68,'Price List'!AI68) -> 8.6 | V68: EA | W68: =+Instructions!$B$3 -> N | Y68: =+Instructions!$D$22 -> 0 | Z68: 8.6 | AB68: new | AC68: 8.6 | AD68: 0 | AE68: 8.6 | AF68: 0 | AH68: RS | AI68: 8.6 | AL68: 8.6 | AM68: 0 | AN68: 0 | AQ68: X
A69: WBHRLID | C69: RS | D69: RTC - All Other | F69: RSSGWBHRLID | I69: WBHRLID | K69: High Roller Bucket Lid | Q69: RTC | T69: new | U69: =IF(Suggested="Yes",'Price List'!AC69,'Price List'!AI69) -> 11.8 | V69: EA | W69: =+Instructions!$B$3 -> N | Y69: =+Instructions!$D$22 -> 0 | Z69: 11.8 | AB69: new | AC69: 11.8 | AD69: =+Y69 -> 0 | AE69: =+Z69 -> 11.8 | AF69: =(AI69-AE69)/AI69 -> 0 | AH69: RS | AI69: =SUM(AL69:AN69)+AG69 -> 11.8 | AL69: 11.8 | AM69: 0 | AN69: 0 | AQ69: X
A70: WBRW | C70: RS | D70: RTC - All Other | F70: RSSGWBRW | I70: WBRW | K70: High Roller Replacement Wheels - 4 piece set | Q70: RTC | T70: new | U70: =IF(Suggested="Yes",'Price List'!AC70,'Price List'!AI70) -> 11.8 | V70: PK | W70: =+Instructions!$B$3 -> N | Y70: =+Instructions!$D$22 -> 0 | Z70: 11.8 | AB70: new | AC70: 11.8 | AD70: 0 | AE70: 11.8 | AF70: 0 | AH70: RS | AI70: 11.8 | AL70: 11.8 | AM70: 0 | AN70: 0 | AQ70: X
A71: WBHRRR | C71: RS | D71: RTC - All Other | F71: RSSGWBHRRR | I71: WBHRRR | K71: High Roller Replacement Roller | Q71: RTC | T71: new | U71: =IF(Suggested="Yes",'Price List'!AC71,'Price List'!AI71) -> 11.8 | V71: EA | W71: =+Instructions!$B$3 -> N | Y71: =+Instructions!$D$22 -> 0 | Z71: 11.8 | AB71: new | AC71: 11.8 | AD71: 0 | AE71: 11.8 | AF71: 0 | AH71: RS | AI71: 11.8 | AL71: 11.8 | AM71: 0 | AN71: 0 | AQ71: X
A72: WBHRRG | C72: RS | D72: RTC - All Other | F72: RSSGWBHRRG | I72: WBHRRG | K72: High Roller Replacement Grate | Q72: RTC | T72: new | U72: =IF(Suggested="Yes",'Price List'!AC72,'Price List'!AI72) -> 10.7 | V72: EA | W72: =+Instructions!$B$3 -> N | Y72: =+Instructions!$D$22 -> 0 | Z72: 10.7 | AB72: new | AC72: 10.7 | AD72: 0 | AE72: 10.7 | AF72: 0 | AH72: RS | AI72: 10.7 | AL72: 10.7 | AM72: 0 | AN72: 0 | AQ72: X
A73: WBHRRBH | C73: RS | D73: RTC - All Other | F73: RSSGWBHRRBH | I73: WBHRRBH | K73: High Roller Replacement Bucket Handle | Q73: RTC | T73: new | U73: =IF(Suggested="Yes",'Price List'!AC73,'Price List'!AI73) -> 11.8 | V73: EA | W73: =+Instructions!$B$3 -> N | Y73: =+Instructions!$D$22 -> 0 | Z73: 11.8 | AB73: new | AC73: 11.8 | AD73: 0 | AE73: 11.8 | AF73: 0 | AH73: RS | AI73: 11.8 | AL73: 11.8 | AM73: 0 | AN73: 0 | AQ73: X
AQ74: X
F75: Doodlebugs | AQ75: X
A76: 8242 | C76: GU | D76: Gundlach - All | F76: GU8242 | H76: 8242 Medium Blue Doodlebug Pad | Q76: Gundlach | S76: Stock | U76: =IF(Suggested="Yes",'Price List'!AC76,'Price List'!AI76) -> 5.45 | V76: EA | W76: =+Instructions!$B$3 -> N | Y76: =+Instructions!$D$22 -> 0 | Z76: =ROUND($AC76*(1-Y76)+0.004999,2) -> 5.45 | AB76: YES | AC76: 5.45 | AD76: =+Y76 -> 0 | AE76: =+Z76 -> 5.45 | AF76: =(AI76-AE76)/AI76 -> 0 | AH76: =+C76 -> GU | AI76: =SUM(AL76:AN76)+AG76 -> 5.45 | AL76: =ROUND(AE76/(1-VLOOKUP(AH76,Group,2,FALSE)),2) -> 5.45 | AM76: =IF(VLOOKUP(AH76,Group,3,FALSE)="YES",VLOOKUP(ROUND(ROUND(AL76,1)-AL76,2),Round,2,FALSE)+VLOOKUP(AH76,Group,4,FALSE),0) -> 0 | AN76: =IF(VLOOKUP(AH76,Group,5,FALSE)="",0,ROUND(AL76-0.04999,1)-AL76+AO76) -> 0 | AO76: =IF(VLOOKUP(AH76,Group,5,FALSE)="","",VLOOKUP(AH76,Group,5,FALSE)) ->  | AQ76: X
A77: 8440 | C77: GU | D77: Gundlach - All | F77: GU8440 | H77: 8440 Fine White Doodlebug Pad | Q77: Gundlach | S77: Stock | U77: =IF(Suggested="Yes",'Price List'!AC77,'Price List'!AI77) -> 5.45 | V77: EA | W77: =+Instructions!$B$3 -> N | Y77: =+Instructions!$D$22 -> 0 | Z77: 5.45 | AB77: YES | AC77: 5.45 | AD77: 0 | AE77: 5.45 | AF77: 0 | AH77: =+C77 -> GU | AI77: 5.45 | AL77: 5.45 | AM77: 0 | AN77: 0 | AQ77: X
AQ78: X
A79: SPSPH | C79: RS | D79: RTC - All Other | F79: RSSGSPSPH | H79: SPSPH | J79: Scrub Pad Handle with Velcro | Q79: RTC | S79: Stock | T79: new | U79: =IF(Suggested="Yes",'Price List'!AC79,'Price List'!AI79) -> 11.75 | V79: EA | W79: =+Instructions!$B$3 -> N | Y79: =+Instructions!$D$22 -> 0 | Z79: =ROUND($AC79*(1-Y79)+0.004999,2) -> 11.75 | AB79: new | AC79: 11.75 | AD79: =+Y79 -> 0 | AE79: =+Z79 -> 11.75 | AF79: =(AI79-AE79)/AI79 -> 0 | AH79: =+C79 -> RS | AI79: =SUM(AL79:AN79)+AG79 -> 11.75 | AL79: =ROUND(AE79/(1-VLOOKUP(AH79,Group,2,FALSE)),2) -> 11.75 | AM79: 0 | AN79: 0 | AQ79: X
A80: SPSPW20 | C80: RS | D80: RTC - All Other | F80: RSSGSPSPW20 | H80: SPSPW20 | J80: Scrub Pad - White (low abrasion) | N80: (20 per Pack) | Q80: RTC | S80: Stock | T80: new | U80: =IF(Suggested="Yes",'Price List'!AC80,'Price List'!AI80) -> 29.6 | V80: PK | W80: =+Instructions!$B$3 -> N | Y80: =+Instructions!$D$22 -> 0 | Z80: =ROUND($AC80*(1-Y80)+0.004999,2) -> 29.6 | AB80: new | AC80: 29.6 | AD80: =+Y80 -> 0 | AE80: =+Z80 -> 29.6 | AF80: =(AI80-AE80)/AI80 -> 0 | AH80: =+C80 -> RS | AI80: =SUM(AL80:AN80)+AG80 -> 29.6 | AL80: =ROUND(AE80/(1-VLOOKUP(AH80,Group,2,FALSE)),2) -> 29.6 | AM80: =IF(VLOOKUP(AH80,Group,3,FALSE)="YES",VLOOKUP(ROUND(ROUND(AL80,1)-AL80,2),Round,2,FALSE)+VLOOKUP(AH80,Group,4,FALSE),0) -> 0 | AN80: =IF(VLOOKUP(AH80,Group,5,FALSE)="",0,ROUND(AL80-0.04999,1)-AL80+AO80) -> 0 | AO80: =IF(VLOOKUP(AH80,Group,5,FALSE)="","",VLOOKUP(AH80,Group,5,FALSE)) ->  | AQ80: X
A81: SPSPR20 | C81: RS | D81: RTC - All Other | F81: RSSGSPSPR20 | H81: SPSPR20 | J81: Scrub Pad - Red (high abrasion) | N81: (20 per Pack) | Q81: RTC | T81: new | U81: =IF(Suggested="Yes",'Price List'!AC81,'Price List'!AI81) -> 29.6 | V81: PK | W81: =+Instructions!$B$3 -> N | Y81: =+Instructions!$D$22 -> 0 | Z81: =ROUND($AC81*(1-Y81)+0.004999,2) -> 29.6 | AB81: new | AC81: 29.6 | AD81: =+Y81 -> 0 | AE81: =+Z81 -> 29.6 | AF81: =(AI81-AE81)/AI81 -> 0 | AH81: =+C81 -> RS | AI81: =SUM(AL81:AN81)+AG81 -> 29.6 | AL81: =ROUND(AE81/(1-VLOOKUP(AH81,Group,2,FALSE)),2) -> 29.6 | AM81: =IF(VLOOKUP(AH81,Group,3,FALSE)="YES",VLOOKUP(ROUND(ROUND(AL81,1)-AL81,2),Round,2,FALSE)+VLOOKUP(AH81,Group,4,FALSE),0) -> 0 | AN81: =IF(VLOOKUP(AH81,Group,5,FALSE)="",0,ROUND(AL81-0.04999,1)-AL81+AO81) -> 0 | AO81: =IF(VLOOKUP(AH81,Group,5,FALSE)="","",VLOOKUP(AH81,Group,5,FALSE)) ->  | AQ81: X
AQ82: X
F83: Sponges | AQ83: X
A84: TM-B | C84: HY | D84: Hydra - All | F84: HY6HS | H84: TM-B | I84: 6" Medium Sponge | Q84: Hydra | S84: Stock | U84: =IF(Suggested="Yes",'Price List'!AC84,'Price List'!AI84) -> 1.9 | V84: EA | W84: =+Instructions!$B$3 -> N | Y84: =+Instructions!$D$22 -> 0 | Z84: 1.9 | AC84: 1.9 | AD84: 0 | AE84: 1.9 | AF84: 0 | AH84: =+C84 -> HY | AI84: 1.9 | AL84: 1.9 | AM84: =IF(VLOOKUP(AH84,Group,3,FALSE)="YES",VLOOKUP(ROUND(ROUND(AL84,1)-AL84,2),Round,2,FALSE)+VLOOKUP(AH84,Group,4,FALSE),0) -> 0 | AN84: =IF(VLOOKUP(AH84,Group,5,FALSE)="",0,ROUND(AL84-0.04999,1)-AL84+AO84) -> 0 | AO84: =IF(VLOOKUP(AH84,Group,5,FALSE)="","",VLOOKUP(AH84,Group,5,FALSE)) ->  | AQ84: X
A85: TM-B | C85: HY | D85: Hydra - All | F85: HY6HS | H85: TM-B | I85: 6" Medium Sponge | L85: - Bag of 40 | Q85: Hydra | S85: Stock | U85: =IF(Suggested="Yes",'Price List'!AC85,'Price List'!AI85) -> 1.5 | V85: EA | W85: =+Instructions!$B$3 -> N | Y85: =+Instructions!$D$22 -> 0 | Z85: 1.5 | AC85: 1.5 | AD85: 0 | AE85: 1.5 | AF85: 0 | AH85: HY | AI85: 1.5 | AL85: 1.5 | AM85: 0 | AN85: 0 | AQ85: X
A86: TXL-B | C86: HY | D86: Hydra - All | F86: HY8HS | H86: TXL-B | I86: 8" X-Large Sponge | Q86: Hydra | S86: Stock | U86: =IF(Suggested="Yes",'Price List'!AC86,'Price List'!AI86) -> 2.6 | V86: EA | W86: =+Instructions!$B$3 -> N | Y86: =+Instructions!$D$22 -> 0 | Z86: 2.6 | AC86: 2.6 | AD86: 0 | AE86: 2.6 | AF86: 0 | AH86: HY | AI86: 2.6 | AL86: 2.6 | AM86: 0 | AN86: 0 | AQ86: X
A87: TXL-B | C87: HY | D87: Hydra - All | F87: HY8HS | H87: TXL-B | I87: 8" X-Large Sponge | L87: - Bag of 25 | Q87: Hydra | S87: Stock | U87: =IF(Suggested="Yes",'Price List'!AC87,'Price List'!AI87) -> 2.15 | V87: EA | W87: =+Instructions!$B$3 -> N | Y87: =+Instructions!$D$22 -> 0 | Z87: 2.15 | AC87: 2.15 | AD87: 0 | AE87: 2.15 | AF87: 0 | AH87: HY | AI87: 2.15 | AL87: 2.15 | AM87: 0 | AN87: 0 | AQ87: X
A88: EPL | C88: HY | D88: Hydra - All | F88: HYEPL | H88: EPL | I88: Epoxy Sponge White | Q88: Hydra | S88: Stock | U88: =IF(Suggested="Yes",'Price List'!AC88,'Price List'!AI88) -> 2.5 | V88: EA | W88: =+Instructions!$B$3 -> N | Y88: =+Instructions!$D$22 -> 0 | Z88: 2.5 | AC88: 2.5 | AD88: 0 | AE88: 2.5 | AF88: 0 | AH88: HY | AI88: 2.5 | AL88: 2.5 | AM88: 0 | AN88: 0 | AQ88: X
A89: SPBLOCKMF | C89: RS | D89: RTC - All Other | F89: RSSGSPBLOCKMF | H89: SPBLOCKMF | J89: Block MicroFiber Sponge | Q89: RTC | S89: Stock | T89: new | U89: =IF(Suggested="Yes",'Price List'!AC89,'Price List'!AI89) -> 3.8 | V89: EA | W89: =+Instructions!$B$3 -> N | Y89: =+Instructions!$D$22 -> 0 | Z89: 3.8 | AB89: new | AC89: 3.8 | AD89: 0 | AE89: 3.8 | AF89: 0 | AH89: RS | AI89: 3.8 | AL89: 3.8 | AM89: 0 | AN89: 0 | AQ89: X
AQ90: X
F91: Notes: | G91: a) Special Pricing for FULL BAG purchases. | AQ91: X
AQ92: X
E93: Tile Spacers | AQ93: X
AQ94: X
F95: Hollow Spacers - specially designed to be grouted over - they don't have to be removed | AQ95: X
A96: SPC116JAR | C96: RS | D96: RTC - All Other | F96: RSSPSPC116JAR | H96: 1/16" + | J96: SPC116JAR Ulimate Spacers | N96: - 1000 Count | Q96: RTC | S96: Stock | T96: new | U96: =IF(Suggested="Yes",'Price List'!AC96,'Price List'!AI96) -> 15.05 | V96: EA | W96: =+Instructions!$B$3 -> N | Y96: =+Instructions!$D$22 -> 0 | Z96: =ROUND($AC96*(1-Y96)+0.004999,2) -> 15.05 | AB96: new | AC96: 15.05 | AD96: =+Y96 -> 0 | AE96: 15.05 | AF96: =(AI96-AE96)/AI96 -> 0 | AH96: =+C96 -> RS | AI96: =SUM(AL96:AN96)+AG96 -> 15.05 | AL96: =ROUND(AE96/(1-VLOOKUP(AH96,Group,2,FALSE)),2) -> 15.05 | AM96: =IF(VLOOKUP(AH96,Group,3,FALSE)="YES",VLOOKUP(ROUND(ROUND(AL96,1)-AL96,2),Round,2,FALSE)+VLOOKUP(AH96,Group,4,FALSE),0) -> 0 | AN96: =IF(VLOOKUP(AH96,Group,5,FALSE)="",0,ROUND(AL96-0.04999,1)-AL96+AO96) -> 0 | AO96: =IF(VLOOKUP(AH96,Group,5,FALSE)="","",VLOOKUP(AH96,Group,5,FALSE)) ->  | AQ96: X
A97: SPC18JAR | C97: RS | D97: RTC - All Other | F97: RSSPSPC18JAR | H97: 1/8" + | J97: SPC18JAR Ulimate Spacers | N97: - 700 Count | Q97: RTC | S97: Stock | T97: new | U97: =IF(Suggested="Yes",'Price List'!AC97,'Price List'!AI97) -> 12.9 | V97: EA | W97: =+Instructions!$B$3 -> N | Y97: =+Instructions!$D$22 -> 0 | Z97: =ROUND($AC97*(1-Y97)+0.004999,2) -> 12.9 | AB97: new | AC97: 12.9 | AD97: 0 | AE97: 12.9 | AF97: =(AI97-AE97)/AI97 -> 0 | AH97: =+C97 -> RS | AI97: =SUM(AL97:AN97)+AG97 -> 12.9 | AL97: =ROUND(AE97/(1-VLOOKUP(AH97,Group,2,FALSE)),2) -> 12.9 | AM97: 0 | AN97: 0 | AQ97: X
A98: SPC316JAR | C98: RS | D98: RTC - All Other | F98: RSSPSPC316JAR | H98: 3/16" + | J98: SPC316JAR Ulimate Spacers | N98: - 400 Count | Q98: RTC | S98: Stock | T98: new | U98: =IF(Suggested="Yes",'Price List'!AC98,'Price List'!AI98) -> 12.9 | V98: EA | W98: =+Instructions!$B$3 -> N | Y98: =+Instructions!$D$22 -> 0 | Z98: =ROUND($AC98*(1-Y98)+0.004999,2) -> 12.9 | AB98: new | AC98: 12.9 | AD98: 0 | AE98: 12.9 | AF98: =(AI98-AE98)/AI98 -> 0 | AH98: =+C98 -> RS | AI98: =SUM(AL98:AN98)+AG98 -> 12.9 | AL98: =ROUND(AE98/(1-VLOOKUP(AH98,Group,2,FALSE)),2) -> 12.9 | AM98: 0 | AN98: 0 | AQ98: X
A99: SPC14JAR | C99: RS | D99: RTC - All Other | F99: RSSPSPC14JAR | H99: 1/4" + | J99: SPC14JAR Ulimate Spacers | N99: - 300 Count | Q99: RTC | T99: new | U99: =IF(Suggested="Yes",'Price List'!AC99,'Price List'!AI99) -> 12.9 | V99: EA | W99: =+Instructions!$B$3 -> N | Y99: =+Instructions!$D$22 -> 0 | Z99: =ROUND($AC99*(1-Y99)+0.004999,2) -> 12.9 | AB99: new | AC99: 12.9 | AD99: 0 | AE99: 12.9 | AF99: =(AI99-AE99)/AI99 -> 0 | AH99: =+C99 -> RS | AI99: =SUM(AL99:AN99)+AG99 -> 12.9 | AL99: =ROUND(AE99/(1-VLOOKUP(AH99,Group,2,FALSE)),2) -> 12.9 | AM99: =IF(VLOOKUP(AH99,Group,3,FALSE)="YES",VLOOKUP(ROUND(ROUND(AL99,1)-AL99,2),Round,2,FALSE)+VLOOKUP(AH99,Group,4,FALSE),0) -> 0 | AN99: =IF(VLOOKUP(AH99,Group,5,FALSE)="",0,ROUND(AL99-0.04999,1)-AL99+AO99) -> 0 | AO99: =IF(VLOOKUP(AH99,Group,5,FALSE)="","",VLOOKUP(AH99,Group,5,FALSE)) ->  | AQ99: X
AQ100: X
A101: SPC116T | C101: RS | D101: RTC - All Other | F101: RSSPSPC116T | H101: 1/16" T | J101: SPC116T Ulimate Spacers | N101: - 2000 Count | Q101: RTC | S101: Stock | T101: new | U101: =IF(Suggested="Yes",'Price List'!AC101,'Price List'!AI101) -> 24.7 | V101: EA | W101: =+Instructions!$B$3 -> N | Y101: =+Instructions!$D$22 -> 0 | Z101: =ROUND($AC101*(1-Y101)+0.004999,2) -> 24.7 | AB101: new | AC101: 24.7 | AD101: =+Y101 -> 0 | AE101: 24.7 | AF101: =(AI101-AE101)/AI101 -> 0 | AH101: =+C101 -> RS | AI101: =SUM(AL101:AN101)+AG101 -> 24.7 | AL101: =ROUND(AE101/(1-VLOOKUP(AH101,Group,2,FALSE)),2) -> 24.7 | AM101: =IF(VLOOKUP(AH101,Group,3,FALSE)="YES",VLOOKUP(ROUND(ROUND(AL101,1)-AL101,2),Round,2,FALSE)+VLOOKUP(AH101,Group,4,FALSE),0) -> 0 | AN101: =IF(VLOOKUP(AH101,Group,5,FALSE)="",0,ROUND(AL101-0.04999,1)-AL101+AO101) -> 0 | AO101: =IF(VLOOKUP(AH101,Group,5,FALSE)="","",VLOOKUP(AH101,Group,5,FALSE)) ->  | AQ101: X
A102: SPC18T | C102: RS | D102: RTC - All Other | F102: RSSPSPC18T | H102: 1/8" T | J102: SPC18T Ulimate Spacers | N102: - 1100 Count | Q102: RTC | S102: Stock | T102: new | U102: =IF(Suggested="Yes",'Price List'!AC102,'Price List'!AI102) -> 17.2 | V102: EA | W102: =+Instructions!$B$3 -> N | Y102: =+Instructions!$D$22 -> 0 | Z102: =ROUND($AC102*(1-Y102)+0.004999,2) -> 17.2 | AB102: new | AC102: 17.2 | AD102: 0 | AE102: 17.2 | AF102: =(AI102-AE102)/AI102 -> 0 | AH102: =+C102 -> RS | AI102: =SUM(AL102:AN102)+AG102 -> 17.2 | AL102: =ROUND(AE102/(1-VLOOKUP(AH102,Group,2,FALSE)),2) -> 17.2 | AM102: =IF(VLOOKUP(AH102,Group,3,FALSE)="YES",VLOOKUP(ROUND(ROUND(AL102,1)-AL102,2),Round,2,FALSE)+VLOOKUP(AH102,Group,4,FALSE),0) -> 0 | AN102: =IF(VLOOKUP(AH102,Group,5,FALSE)="",0,ROUND(AL102-0.04999,1)-AL102+AO102) -> 0 | AO102: =IF(VLOOKUP(AH102,Group,5,FALSE)="","",VLOOKUP(AH102,Group,5,FALSE)) ->  | AQ102: X
A103: SPC316T | C103: RS | D103: RTC - All Other | F103: RSSPSPC316T | H103: 3/16" T | J103: SPC316T Ulimate Spacers | N103: - 800 Count | Q103: RTC | S103: Stock | T103: new | U103: =IF(Suggested="Yes",'Price List'!AC103,'Price List'!AI103) -> 17.2 | V103: EA | W103: =+Instructions!$B$3 -> N | Y103: =+Instructions!$D$22 -> 0 | Z103: =ROUND($AC103*(1-Y103)+0.004999,2) -> 17.2 | AB103: new | AC103: 17.2 | AD103: 0 | AE103: 17.2 | AF103: =(AI103-AE103)/AI103 -> 0 | AH103: =+C103 -> RS | AI103: =SUM(AL103:AN103)+AG103 -> 17.2 | AL103: =ROUND(AE103/(1-VLOOKUP(AH103,Group,2,FALSE)),2) -> 17.2 | AM103: =IF(VLOOKUP(AH103,Group,3,FALSE)="YES",VLOOKUP(ROUND(ROUND(AL103,1)-AL103,2),Round,2,FALSE)+VLOOKUP(AH103,Group,4,FALSE),0) -> 0 | AN103: =IF(VLOOKUP(AH103,Group,5,FALSE)="",0,ROUND(AL103-0.04999,1)-AL103+AO103) -> 0 | AO103: =IF(VLOOKUP(AH103,Group,5,FALSE)="","",VLOOKUP(AH103,Group,5,FALSE)) ->  | AQ103: X
A104: SPC14T | C104: RS | D104: RTC - All Other | F104: RSSPSPC14T | H104: 1/4" T | J104: SPC14T Ulimate Spacers | N104: - 300 Count | Q104: RTC | T104: new | U104: =IF(Suggested="Yes",'Price List'!AC104,'Price List'!AI104) -> 17.2 | V104: EA | W104: =+Instructions!$B$3 -> N | Y104: =+Instructions!$D$22 -> 0 | Z104: =ROUND($AC104*(1-Y104)+0.004999,2) -> 17.2 | AB104: new | AC104: 17.2 | AD104: 0 | AE104: 17.2 | AF104: =(AI104-AE104)/AI104 -> 0 | AH104: =+C104 -> RS | AI104: =SUM(AL104:AN104)+AG104 -> 17.2 | AL104: =ROUND(AE104/(1-VLOOKUP(AH104,Group,2,FALSE)),2) -> 17.2 | AM104: =IF(VLOOKUP(AH104,Group,3,FALSE)="YES",VLOOKUP(ROUND(ROUND(AL104,1)-AL104,2),Round,2,FALSE)+VLOOKUP(AH104,Group,4,FALSE),0) -> 0 | AN104: =IF(VLOOKUP(AH104,Group,5,FALSE)="",0,ROUND(AL104-0.04999,1)-AL104+AO104) -> 0 | AO104: =IF(VLOOKUP(AH104,Group,5,FALSE)="","",VLOOKUP(AH104,Group,5,FALSE)) ->  | AQ104: X
AQ105: X
F106: Tavy 2-Sided Spacers - two-sided design for muliple uses | AQ106: X
A107: 4004 | C107: RS | D107: RTC - All Other | F107: RSSP4004 | H107: 1/8" + 2-side | J107: 4004 - Tavy 2-sided Cross Spacer | N107: - 500 Count | Q107: RTC | S107: Stock | T107: new | U107: =IF(Suggested="Yes",'Price List'!AC107,'Price List'!AI107) -> 26.9 | V107: EA | W107: =+Instructions!$B$3 -> N | Y107: =+Instructions!$D$22 -> 0 | Z107: =ROUND($AC107*(1-Y107)+0.004999,2) -> 26.9 | AB107: new | AC107: 26.9 | AD107: =+Y107 -> 0 | AE107: =+Z107 -> 26.9 | AF107: =(AI107-AE107)/AI107 -> 0 | AH107: =+C107 -> RS | AI107: =SUM(AL107:AN107)+AG107 -> 26.9 | AL107: =ROUND(AE107/(1-VLOOKUP(AH107,Group,2,FALSE)),2) -> 26.9 | AM107: =IF(VLOOKUP(AH107,Group,3,FALSE)="YES",VLOOKUP(ROUND(ROUND(AL107,1)-AL107,2),Round,2,FALSE)+VLOOKUP(AH107,Group,4,FALSE),0) -> 0 | AN107: =IF(VLOOKUP(AH107,Group,5,FALSE)="",0,ROUND(AL107-0.04999,1)-AL107+AO107) -> 0 | AO107: =IF(VLOOKUP(AH107,Group,5,FALSE)="","",VLOOKUP(AH107,Group,5,FALSE)) ->  | AQ107: X
A108: 5004 | C108: RS | D108: RTC - All Other | F108: RSSP5004 | H108: 1/8" T - 2-side | J108: 5004 - Tavy 2-sided "T" Spacer | N108: - 100 Count | Q108: RTC | S108: Stock | T108: new | U108: =IF(Suggested="Yes",'Price List'!AC108,'Price List'!AI108) -> 5.75 | V108: EA | W108: =+Instructions!$B$3 -> N | Y108: =+Instructions!$D$22 -> 0 | Z108: =ROUND($AC108*(1-Y108)+0.004999,2) -> 5.75 | AB108: new | AC108: 5.75 | AD108: =+Y108 -> 0 | AE108: =+Z108 -> 5.75 | AF108: =(AI108-AE108)/AI108 -> 0 | AH108: =+C108 -> RS | AI108: =SUM(AL108:AN108)+AG108 -> 5.75 | AL108: =ROUND(AE108/(1-VLOOKUP(AH108,Group,2,FALSE)),2) -> 5.75 | AM108: =IF(VLOOKUP(AH108,Group,3,FALSE)="YES",VLOOKUP(ROUND(ROUND(AL108,1)-AL108,2),Round,2,FALSE)+VLOOKUP(AH108,Group,4,FALSE),0) -> 0 | AN108: =IF(VLOOKUP(AH108,Group,5,FALSE)="",0,ROUND(AL108-0.04999,1)-AL108+AO108) -> 0 | AO108: =IF(VLOOKUP(AH108,Group,5,FALSE)="","",VLOOKUP(AH108,Group,5,FALSE)) ->  | AQ108: X
AQ109: X
F110: Horseshoe Shim Spacers | AQ110: X
A111: SPC116SHIM | C111: RS | D111: RTC - All Other | F111: RSSPSPC116SHIM | H111: 1/16" U | J111: SPC116SHIM Horseshoe Spacer | N111: - 400 Count | Q111: RTC | S111: Stock | T111: new | U111: =IF(Suggested="Yes",'Price List'!AC111,'Price List'!AI111) -> 15.45 | V111: EA | W111: =+Instructions!$B$3 -> N | Y111: =+Instructions!$D$22 -> 0 | Z111: =ROUND($AC111*(1-Y111)+0.004999,2) -> 15.45 | AB111: new | AC111: 15.45 | AD111: =+Y111 -> 0 | AE111: =+Z111 -> 15.45 | AF111: =(AI111-AE111)/AI111 -> 0 | AH111: =+C111 -> RS | AI111: =SUM(AL111:AN111)+AG111 -> 15.45 | AL111: =ROUND(AE111/(1-VLOOKUP(AH111,Group,2,FALSE)),2) -> 15.45 | AM111: =IF(VLOOKUP(AH111,Group,3,FALSE)="YES",VLOOKUP(ROUND(ROUND(AL111,1)-AL111,2),Round,2,FALSE)+VLOOKUP(AH111,Group,4,FALSE),0) -> 0 | AN111: =IF(VLOOKUP(AH111,Group,5,FALSE)="",0,ROUND(AL111-0.04999,1)-AL111+AO111) -> 0 | AO111: =IF(VLOOKUP(AH111,Group,5,FALSE)="","",VLOOKUP(AH111,Group,5,FALSE)) ->  | AQ111: X
A112: SPC18SHIM | C112: RS | D112: RTC - All Other | F112: RSSPSPC18SHIM | H112: 1/8" U | J112: SPC18SHIM Horseshoe Spacer | N112: - 300 Count | Q112: RTC | S112: Stock | T112: new | U112: =IF(Suggested="Yes",'Price List'!AC112,'Price List'!AI112) -> 17.05 | V112: EA | W112: =+Instructions!$B$3 -> N | Y112: =+Instructions!$D$22 -> 0 | Z112: =ROUND($AC112*(1-Y112)+0.004999,2) -> 17.05 | AB112: new | AC112: 17.05 | AD112: =+Y112 -> 0 | AE112: =+Z112 -> 17.05 | AF112: =(AI112-AE112)/AI112 -> 0 | AH112: =+C112 -> RS | AI112: =SUM(AL112:AN112)+AG112 -> 17.05 | AL112: =ROUND(AE112/(1-VLOOKUP(AH112,Group,2,FALSE)),2) -> 17.05 | AM112: 0 | AN112: 0 | AQ112: X
AQ113: X
F114: Wedges | AQ114: X
A115: 5104 | C115: RS | D115: RTC - All Other | F115: RSSP5104 | H115: 1/8" Wedge | J115: 5104 Wedge Spacers | N115: - 100 Count | Q115: RTC | S115: Stock | T115: new | U115: =IF(Suggested="Yes",'Price List'!AC115,'Price List'!AI115) -> 5.65 | V115: EA | W115: =+Instructions!$B$3 -> N | Y115: =+Instructions!$D$22 -> 0 | Z115: =ROUND($AC115*(1-Y115)+0.004999,2) -> 5.65 | AB115: new | AC115: 5.65 | AD115: =+Y115 -> 0 | AE115: =+Z115 -> 5.65 | AF115: =(AI115-AE115)/AI115 -> 0 | AH115: =+C115 -> RS | AI115: =SUM(AL115:AN115)+AG115 -> 5.65 | AL115: =ROUND(AE115/(1-VLOOKUP(AH115,Group,2,FALSE)),2) -> 5.65 | AM115: =IF(VLOOKUP(AH115,Group,3,FALSE)="YES",VLOOKUP(ROUND(ROUND(AL115,1)-AL115,2),Round,2,FALSE)+VLOOKUP(AH115,Group,4,FALSE),0) -> 0 | AN115: =IF(VLOOKUP(AH115,Group,5,FALSE)="",0,ROUND(AL115-0.04999,1)-AL115+AO115) -> 0 | AO115: =IF(VLOOKUP(AH115,Group,5,FALSE)="","",VLOOKUP(AH115,Group,5,FALSE)) ->  | AQ115: X
A116: 5106 | C116: RS | D116: RTC - All Other | F116: RSSP5106 | H116: 1/4" Wedge | J116: 5106 Wedge Spacers | N116: - 100 Count | Q116: RTC | S116: Stock | T116: new | U116: =IF(Suggested="Yes",'Price List'!AC116,'Price List'!AI116) -> 5.65 | V116: EA | W116: =+Instructions!$B$3 -> N | Y116: =+Instructions!$D$22 -> 0 | Z116: =ROUND($AC116*(1-Y116)+0.004999,2) -> 5.65 | AB116: new | AC116: 5.65 | AD116: =+Y116 -> 0 | AE116: =+Z116 -> 5.65 | AF116: =(AI116-AE116)/AI116 -> 0 | AH116: =+C116 -> RS | AI116: =SUM(AL116:AN116)+AG116 -> 5.65 | AL116: =ROUND(AE116/(1-VLOOKUP(AH116,Group,2,FALSE)),2) -> 5.65 | AM116: =IF(VLOOKUP(AH116,Group,3,FALSE)="YES",VLOOKUP(ROUND(ROUND(AL116,1)-AL116,2),Round,2,FALSE)+VLOOKUP(AH116,Group,4,FALSE),0) -> 0 | AN116: =IF(VLOOKUP(AH116,Group,5,FALSE)="",0,ROUND(AL116-0.04999,1)-AL116+AO116) -> 0 | AO116: =IF(VLOOKUP(AH116,Group,5,FALSE)="","",VLOOKUP(AH116,Group,5,FALSE)) ->  | AQ116: X
AQ117: X
E118: Lippage Reduction Systems | AQ118: X
AQ119: X
F120: ProLeveling System | AQ120: X
AQ121: X
A122: PRSL1 | C122: PP | D122: Progress Profiles - All | F122: PPPRSL1 | H122: 1 mm - 1/16" | J122: PRSL1 | K122: Linear Levelers | O122: - 100 Count | Q122: Progress | S122: Stock | U122: =IF(Suggested="Yes",'Price List'!AC122,'Price List'!AI122) -> 32.75 | V122: EA | W122: =+Instructions!$B$3 -> N | Y122: =+Instructions!$D$22 -> 0 | Z122: =ROUND($AC122*(1-Y122)+0.004999,2) -> 32.75 | AB122: YES | AC122: 32.75 | AD122: =+Y122 -> 0 | AE122: =+Z122 -> 32.75 | AF122: =(AI122-AE122)/AI122 -> 0 | AH122: =+C122 -> PP | AI122: =SUM(AL122:AN122)+AG122 -> 32.75 | AL122: =ROUND(AE122/(1-VLOOKUP(AH122,Group,2,FALSE)),2) -> 32.75 | AM122: =IF(VLOOKUP(AH122,Group,3,FALSE)="YES",VLOOKUP(ROUND(ROUND(AL122,1)-AL122,2),Round,2,FALSE)+VLOOKUP(AH122,Group,4,FALSE),0) -> 0 | AN122: =IF(VLOOKUP(AH122,Group,5,FALSE)="",0,ROUND(AL122-0.04999,1)-AL122+AO122) -> 0 | AO122: =IF(VLOOKUP(AH122,Group,5,FALSE)="","",VLOOKUP(AH122,Group,5,FALSE)) ->  | AQ122: X
A123: PRSL2 | C123: PP | D123: Progress Profiles - All | F123: PPPRSL2 | H123: 2 mm - 3/32" | J123: PRSL2 | K123: Linear Levelers | O123: - 100 Count | Q123: Progress | S123: Stock | U123: =IF(Suggested="Yes",'Price List'!AC123,'Price List'!AI123) -> 32.75 | V123: EA | W123: =+Instructions!$B$3 -> N | Y123: =+Instructions!$D$22 -> 0 | Z123: 32.75 | AB123: YES | AC123: 32.75 | AD123: 0 | AE123: 32.75 | AF123: 0 | AH123: =+C123 -> PP | AI123: 32.75 | AL123: 32.75 | AM123: =IF(VLOOKUP(AH123,Group,3,FALSE)="YES",VLOOKUP(ROUND(ROUND(AL123,1)-AL123,2),Round,2,FALSE)+VLOOKUP(AH123,Group,4,FALSE),0) -> 0 | AN123: =IF(VLOOKUP(AH123,Group,5,FALSE)="",0,ROUND(AL123-0.04999,1)-AL123+AO123) -> 0 | AO123: =IF(VLOOKUP(AH123,Group,5,FALSE)="","",VLOOKUP(AH123,Group,5,FALSE)) ->  | AQ123: X
A124: PRSL3 | C124: PP | D124: Progress Profiles - All | F124: PPPRSL3 | H124: 3 mm - 1/8" | J124: PRSL3 | K124: Linear Levelers | O124: - 100 Count | Q124: Progress | S124: Stock | U124: =IF(Suggested="Yes",'Price List'!AC124,'Price List'!AI124) -> 32.75 | V124: EA | W124: =+Instructions!$B$3 -> N | Y124: =+Instructions!$D$22 -> 0 | Z124: 32.75 | AB124: YES | AC124: 32.75 | AD124: 0 | AE124: 32.75 | AF124: 0 | AH124: =+C124 -> PP | AI124: 32.75 | AL124: 32.75 | AM124: =IF(VLOOKUP(AH124,Group,3,FALSE)="YES",VLOOKUP(ROUND(ROUND(AL124,1)-AL124,2),Round,2,FALSE)+VLOOKUP(AH124,Group,4,FALSE),0) -> 0 | AN124: =IF(VLOOKUP(AH124,Group,5,FALSE)="",0,ROUND(AL124-0.04999,1)-AL124+AO124) -> 0 | AO124: =IF(VLOOKUP(AH124,Group,5,FALSE)="","",VLOOKUP(AH124,Group,5,FALSE)) ->  | AQ124: X
A125: PRSL5 | C125: PP | D125: Progress Profiles - All | F125: PPPRSL5 | H125: 5 mm - 3/16" | J125: PRSL5 | K125: Linear Levelers | O125: - 100 Count | Q125: Progress | S125: n/s | U125: =IF(Suggested="Yes",'Price List'!AC125,'Price List'!AI125) -> 32.75 | V125: EA | W125: =+Instructions!$B$3 -> N | Y125: =+Instructions!$D$22 -> 0 | Z125: 32.75 | AB125: YES | AC125: 32.75 | AD125: 0 | AE125: 32.75 | AF125: 0 | AH125: =+C125 -> PP | AI125: 32.75 | AL125: 32.75 | AM125: =IF(VLOOKUP(AH125,Group,3,FALSE)="YES",VLOOKUP(ROUND(ROUND(AL125,1)-AL125,2),Round,2,FALSE)+VLOOKUP(AH125,Group,4,FALSE),0) -> 0 | AN125: =IF(VLOOKUP(AH125,Group,5,FALSE)="",0,ROUND(AL125-0.04999,1)-AL125+AO125) -> 0 | AO125: =IF(VLOOKUP(AH125,Group,5,FALSE)="","",VLOOKUP(AH125,Group,5,FALSE)) ->  | AQ125: X
AQ126: X
A127: PRST1 | C127: PP | D127: Progress Profiles - All | F127: PPPRST1 | H127: 1 mm - 1/16" | J127: PRST1 | K127: T-Shaped Levelers | O127: - 100 Count | Q127: Progress | S127: Stock | U127: =IF(Suggested="Yes",'Price List'!AC127,'Price List'!AI127) -> 38.75 | V127: EA | W127: =+Instructions!$B$3 -> N | Y127: =+Instructions!$D$22 -> 0 | Z127: 38.75 | AB127: YES | AC127: 38.75 | AD127: 0 | AE127: 38.75 | AF127: 0 | AH127: =+C127 -> PP | AI127: 38.75 | AL127: 38.75 | AM127: =IF(VLOOKUP(AH127,Group,3,FALSE)="YES",VLOOKUP(ROUND(ROUND(AL127,1)-AL127,2),Round,2,FALSE)+VLOOKUP(AH127,Group,4,FALSE),0) -> 0 | AN127: =IF(VLOOKUP(AH127,Group,5,FALSE)="",0,ROUND(AL127-0.04999,1)-AL127+AO127) -> 0 | AO127: =IF(VLOOKUP(AH127,Group,5,FALSE)="","",VLOOKUP(AH127,Group,5,FALSE)) ->  | AQ127: X
A128: PRST2 | C128: PP | D128: Progress Profiles - All | F128: PPPRST2 | H128: 2 mm - 3/32" | J128: PRST2 | K128: T-Shaped Levelers | O128: - 100 Count | Q128: Progress | S128: Stock | U128: =IF(Suggested="Yes",'Price List'!AC128,'Price List'!AI128) -> 38.75 | V128: EA | W128: =+Instructions!$B$3 -> N | Y128: =+Instructions!$D$22 -> 0 | Z128: 38.75 | AB128: YES | AC128: 38.75 | AD128: 0 | AE128: 38.75 | AF128: 0 | AH128: =+C128 -> PP | AI128: 38.75 | AL128: 38.75 | AM128: =IF(VLOOKUP(AH128,Group,3,FALSE)="YES",VLOOKUP(ROUND(ROUND(AL128,1)-AL128,2),Round,2,FALSE)+VLOOKUP(AH128,Group,4,FALSE),0) -> 0 | AN128: =IF(VLOOKUP(AH128,Group,5,FALSE)="",0,ROUND(AL128-0.04999,1)-AL128+AO128) -> 0 | AO128: =IF(VLOOKUP(AH128,Group,5,FALSE)="","",VLOOKUP(AH128,Group,5,FALSE)) ->  | AQ128: X
A129: PRST3 | C129: PP | D129: Progress Profiles - All | F129: PPPRST3 | H129: 3 mm - 1/8" | J129: PRST3 | K129: T-Shaped Levelers | O129: - 100 Count | Q129: Progress | S129: Stock | U129: =IF(Suggested="Yes",'Price List'!AC129,'Price List'!AI129) -> 38.75 | V129: EA | W129: =+Instructions!$B$3 -> N | Y129: =+Instructions!$D$22 -> 0 | Z129: 38.75 | AB129: YES | AC129: 38.75 | AD129: 0 | AE129: 38.75 | AF129: 0 | AH129: =+C129 -> PP | AI129: 38.75 | AL129: 38.75 | AM129: =IF(VLOOKUP(AH129,Group,3,FALSE)="YES",VLOOKUP(ROUND(ROUND(AL129,1)-AL129,2),Round,2,FALSE)+VLOOKUP(AH129,Group,4,FALSE),0) -> 0 | AN129: =IF(VLOOKUP(AH129,Group,5,FALSE)="",0,ROUND(AL129-0.04999,1)-AL129+AO129) -> 0 | AO129: =IF(VLOOKUP(AH129,Group,5,FALSE)="","",VLOOKUP(AH129,Group,5,FALSE)) ->  | AQ129: X
A130: PRST5 | C130: PP | D130: Progress Profiles - All | F130: PPPRST5 | H130: 5 mm - 3/16" | J130: PRST5 | K130: T-Shaped Levelers | O130: - 100 Count | Q130: Progress | S130: n/s | U130: =IF(Suggested="Yes",'Price List'!AC130,'Price List'!AI130) -> 38.75 | V130: EA | W130: =+Instructions!$B$3 -> N | Y130: =+Instructions!$D$22 -> 0 | Z130: 38.75 | AB130: YES | AC130: 38.75 | AD130: 0 | AE130: 38.75 | AF130: 0 | AH130: =+C130 -> PP | AI130: 38.75 | AL130: 38.75 | AM130: =IF(VLOOKUP(AH130,Group,3,FALSE)="YES",VLOOKUP(ROUND(ROUND(AL130,1)-AL130,2),Round,2,FALSE)+VLOOKUP(AH130,Group,4,FALSE),0) -> 0 | AN130: =IF(VLOOKUP(AH130,Group,5,FALSE)="",0,ROUND(AL130-0.04999,1)-AL130+AO130) -> 0 | AO130: =IF(VLOOKUP(AH130,Group,5,FALSE)="","",VLOOKUP(AH130,Group,5,FALSE)) ->  | AQ130: X
AQ131: X
A132: PRSC1 | C132: PP | D132: Progress Profiles - All | F132: PPPRSC1 | H132: 1 mm - 1/16" | J132: PRSC1 | K132: Cross-Shaped Levelers | O132: - 100 Count | Q132: Progress | S132: Stock | U132: =IF(Suggested="Yes",'Price List'!AC132,'Price List'!AI132) -> 38.75 | V132: EA | W132: =+Instructions!$B$3 -> N | Y132: =+Instructions!$D$22 -> 0 | Z132: 38.75 | AB132: YES | AC132: 38.75 | AD132: 0 | AE132: 38.75 | AF132: 0 | AH132: =+C132 -> PP | AI132: 38.75 | AL132: 38.75 | AM132: =IF(VLOOKUP(AH132,Group,3,FALSE)="YES",VLOOKUP(ROUND(ROUND(AL132,1)-AL132,2),Round,2,FALSE)+VLOOKUP(AH132,Group,4,FALSE),0) -> 0 | AN132: =IF(VLOOKUP(AH132,Group,5,FALSE)="",0,ROUND(AL132-0.04999,1)-AL132+AO132) -> 0 | AO132: =IF(VLOOKUP(AH132,Group,5,FALSE)="","",VLOOKUP(AH132,Group,5,FALSE)) ->  | AQ132: X
A133: PRSC2 | C133: PP | D133: Progress Profiles - All | F133: PPPRSC2 | H133: 2 mm - 3/32" | J133: PRSC2 | K133: Cross-Shaped Levelers | O133: - 100 Count | Q133: Progress | S133: Stock | U133: =IF(Suggested="Yes",'Price List'!AC133,'Price List'!AI133) -> 38.75 | V133: EA | W133: =+Instructions!$B$3 -> N | Y133: =+Instructions!$D$22 -> 0 | Z133: 38.75 | AB133: YES | AC133: 38.75 | AD133: 0 | AE133: 38.75 | AF133: 0 | AH133: =+C133 -> PP | AI133: 38.75 | AL133: 38.75 | AM133: =IF(VLOOKUP(AH133,Group,3,FALSE)="YES",VLOOKUP(ROUND(ROUND(AL133,1)-AL133,2),Round,2,FALSE)+VLOOKUP(AH133,Group,4,FALSE),0) -> 0 | AN133: =IF(VLOOKUP(AH133,Group,5,FALSE)="",0,ROUND(AL133-0.04999,1)-AL133+AO133) -> 0 | AO133: =IF(VLOOKUP(AH133,Group,5,FALSE)="","",VLOOKUP(AH133,Group,5,FALSE)) ->  | AQ133: X
A134: PRSC3 | C134: PP | D134: Progress Profiles - All | F134: PPPRSC3 | H134: 3 mm - 1/8" | J134: PRSC3 | K134: Cross-Shaped Levelers | O134: - 100 Count | Q134: Progress | S134: Stock | U134: =IF(Suggested="Yes",'Price List'!AC134,'Price List'!AI134) -> 38.75 | V134: EA | W134: =+Instructions!$B$3 -> N | Y134: =+Instructions!$D$22 -> 0 | Z134: 38.75 | AB134: YES | AC134: 38.75 | AD134: 0 | AE134: 38.75 | AF134: 0 | AH134: =+C134 -> PP | AI134: 38.75 | AL134: 38.75 | AM134: =IF(VLOOKUP(AH134,Group,3,FALSE)="YES",VLOOKUP(ROUND(ROUND(AL134,1)-AL134,2),Round,2,FALSE)+VLOOKUP(AH134,Group,4,FALSE),0) -> 0 | AN134: =IF(VLOOKUP(AH134,Group,5,FALSE)="",0,ROUND(AL134-0.04999,1)-AL134+AO134) -> 0 | AO134: =IF(VLOOKUP(AH134,Group,5,FALSE)="","",VLOOKUP(AH134,Group,5,FALSE)) ->  | AQ134: X
A135: PRSC5 | C135: PP | D135: Progress Profiles - All | F135: PPPRSC5 | H135: 5 mm - 3/16" | J135: PRSC5 | K135: Cross-Shaped Levelers | O135: - 100 Count | Q135: Progress | S135: Stock | U135: =IF(Suggested="Yes",'Price List'!AC135,'Price List'!AI135) -> 38.75 | V135: EA | W135: =+Instructions!$B$3 -> N | Y135: =+Instructions!$D$22 -> 0 | Z135: 38.75 | AB135: YES | AC135: 38.75 | AD135: 0 | AE135: 38.75 | AF135: 0 | AH135: =+C135 -> PP | AI135: 38.75 | AL135: 38.75 | AM135: =IF(VLOOKUP(AH135,Group,3,FALSE)="YES",VLOOKUP(ROUND(ROUND(AL135,1)-AL135,2),Round,2,FALSE)+VLOOKUP(AH135,Group,4,FALSE),0) -> 0 | AN135: =IF(VLOOKUP(AH135,Group,5,FALSE)="",0,ROUND(AL135-0.04999,1)-AL135+AO135) -> 0 | AO135: =IF(VLOOKUP(AH135,Group,5,FALSE)="","",VLOOKUP(AH135,Group,5,FALSE)) ->  | AQ135: X
AQ136: X
A137: PRST | C137: PP | D137: Progress Profiles - All | F137: PPPRST | H137: PRST | I137: Universal Rotating Pommel Cap (re-usable) | O137: - 50 Count | Q137: Progress | S137: Stock | U137: =IF(Suggested="Yes",'Price List'!AC137,'Price List'!AI137) -> 72.6 | V137: EA | W137: =+Instructions!$B$3 -> N | Y137: =+Instructions!$D$22 -> 0 | Z137: 72.6 | AB137: YES | AC137: 72.6 | AD137: 0 | AE137: 72.6 | AF137: 0 | AH137: =+C137 -> PP | AI137: 72.6 | AL137: 72.6 | AM137: =IF(VLOOKUP(AH137,Group,3,FALSE)="YES",VLOOKUP(ROUND(ROUND(AL137,1)-AL137,2),Round,2,FALSE)+VLOOKUP(AH137,Group,4,FALSE),0) -> 0 | AN137: =IF(VLOOKUP(AH137,Group,5,FALSE)="",0,ROUND(AL137-0.04999,1)-AL137+AO137) -> 0 | AO137: =IF(VLOOKUP(AH137,Group,5,FALSE)="","",VLOOKUP(AH137,Group,5,FALSE)) ->  | AQ137: X
A138: PRSTT | C138: PP | D138: Progress Profiles - All | F138: PPPRSTT | H138: PRSTT | I138: Transparent Rotating Pommel Cap (re-usable) | O138: - 50 Count | Q138: Progress | S138: n/s | U138: =IF(Suggested="Yes",'Price List'!AC138,'Price List'!AI138) -> 72.6 | V138: EA | W138: =+Instructions!$B$3 -> N | Y138: =+Instructions!$D$22 -> 0 | Z138: =ROUND($AC138*(1-Y138)+0.004999,2) -> 72.6 | AB138: YES | AC138: 72.6 | AD138: =+Y138 -> 0 | AE138: =+Z138 -> 72.6 | AF138: =(AI138-AE138)/AI138 -> 0 | AH138: =+C138 -> PP | AI138: =SUM(AL138:AN138)+AG138 -> 72.6 | AL138: =ROUND(AE138/(1-VLOOKUP(AH138,Group,2,FALSE)),2) -> 72.6 | AM138: =IF(VLOOKUP(AH138,Group,3,FALSE)="YES",VLOOKUP(ROUND(ROUND(AL138,1)-AL138,2),Round,2,FALSE)+VLOOKUP(AH138,Group,4,FALSE),0) -> 0 | AN138: =IF(VLOOKUP(AH138,Group,5,FALSE)="",0,ROUND(AL138-0.04999,1)-AL138+AO138) -> 0 | AO138: =IF(VLOOKUP(AH138,Group,5,FALSE)="","",VLOOKUP(AH138,Group,5,FALSE)) ->  | AQ138: X
A139: PRSPC | C139: PP | D139: Progress Profiles - All | F139: PPPRSPC | H139: PRSPC | I139: System Protection Cap (re-usable) | O139: - 50 Count | Q139: Progress | S139: Stock | U139: =IF(Suggested="Yes",'Price List'!AC139,'Price List'!AI139) -> 68.75 | V139: EA | W139: =+Instructions!$B$3 -> N | Y139: =+Instructions!$D$22 -> 0 | Z139: 68.75 | AB139: YES | AC139: 68.75 | AD139: 0 | AE139: 68.75 | AF139: 0 | AH139: =+C139 -> PP | AI139: 68.75 | AL139: 68.75 | AM139: =IF(VLOOKUP(AH139,Group,3,FALSE)="YES",VLOOKUP(ROUND(ROUND(AL139,1)-AL139,2),Round,2,FALSE)+VLOOKUP(AH139,Group,4,FALSE),0) -> 0 | AN139: =IF(VLOOKUP(AH139,Group,5,FALSE)="",0,ROUND(AL139-0.04999,1)-AL139+AO139) -> 0 | AO139: =IF(VLOOKUP(AH139,Group,5,FALSE)="","",VLOOKUP(AH139,Group,5,FALSE)) ->  | AQ139: X
A140: PRSSV | C140: PP | D140: Progress Profiles - All | F140: PPPRSSV | H140: PRSSV | I140: Pommel Remover | Q140: Progress | S140: Stock | U140: =IF(Suggested="Yes",'Price List'!AC140,'Price List'!AI140) -> 1.6 | V140: EA | W140: =+Instructions!$B$3 -> N | Y140: =+Instructions!$D$22 -> 0 | Z140: 1.6 | AC140: 1.6 | AD140: 0 | AE140: 1.6 | AF140: 0 | AH140: =+C140 -> PP | AI140: 1.6 | AL140: 1.6 | AM140: =IF(VLOOKUP(AH140,Group,3,FALSE)="YES",VLOOKUP(ROUND(ROUND(AL140,1)-AL140,2),Round,2,FALSE)+VLOOKUP(AH140,Group,4,FALSE),0) -> 0 | AN140: =IF(VLOOKUP(AH140,Group,5,FALSE)="",0,ROUND(AL140-0.04999,1)-AL140+AO140) -> 0 | AO140: =IF(VLOOKUP(AH140,Group,5,FALSE)="","",VLOOKUP(AH140,Group,5,FALSE)) ->  | AQ140: X
AQ141: X
F142: Delta Leveling System | AQ142: X
AQ143: X
A144: 3938 | C144: RU | D144: Rubi - All Other | F144: RU03938 | H144: 1/16" Clip | J144: 03938 Delta Leveling System | O144: - 400 Count | Q144: Rubi | S144: Stock | U144: =IF(Suggested="Yes",'Price List'!AC144,'Price List'!AI144) -> 25.7 | V144: EA | W144: =+Instructions!$B$3 -> N | Y144: =+Instructions!$D$22 -> 0 | Z144: =ROUND($AC144*(1-Y144)+0.004999,2) -> 25.7 | AB144: YES | AC144: 25.7 | AD144: =+Y144 -> 0 | AE144: 25.7 | AF144: =(AI144-AE144)/AI144 -> 0 | AH144: =+C144 -> RU | AI144: =SUM(AL144:AN144)+AG144 -> 25.7 | AL144: =ROUND(AE144/(1-VLOOKUP(AH144,Group,2,FALSE)),2) -> 25.7 | AM144: =IF(VLOOKUP(AH144,Group,3,FALSE)="YES",VLOOKUP(ROUND(ROUND(AL144,1)-AL144,2),Round,2,FALSE)+VLOOKUP(AH144,Group,4,FALSE),0) -> 0 | AN144: =IF(VLOOKUP(AH144,Group,5,FALSE)="",0,ROUND(AL144-0.04999,1)-AL144+AO144) -> 0 | AO144: =IF(VLOOKUP(AH144,Group,5,FALSE)="","",VLOOKUP(AH144,Group,5,FALSE)) ->  | AQ144: X
A145: 3950 | C145: RU | D145: Rubi - All Other | F145: RU03950 | H145: Wedge | J145: 03950 Delta Leveling System | O145: - 400 Count | Q145: Rubi | S145: Stock | U145: =IF(Suggested="Yes",'Price List'!AC145,'Price List'!AI145) -> 56.55 | V145: EA | W145: =+Instructions!$B$3 -> N | Y145: =+Instructions!$D$22 -> 0 | Z145: 56.55 | AB145: YES | AC145: 56.55 | AD145: 0 | AE145: 56.55 | AF145: 0 | AH145: =+C145 -> RU | AI145: 56.55 | AL145: 56.55 | AM145: 0 | AN145: 0 | AQ145: X
A146: 3901 | C146: RU | D146: Rubi - All Other | F146: RU03901 | H146: Pliers | J146: 03901 Tile Level Pliers Fast-Fix | Q146: Rubi | S146: Stock | U146: =IF(Suggested="Yes",'Price List'!AC146,'Price List'!AI146) -> 39.25 | V146: EA | W146: =+Instructions!$B$3 -> N | Y146: =+Instructions!$D$22 -> 0 | Z146: 39.25 | AB146: YES | AC146: 39.25 | AD146: 0 | AE146: 39.25 | AF146: 0 | AH146: =+C146 -> RU | AI146: 39.25 | AL146: 39.25 | AM146: 0 | AN146: 0 | AQ146: X
AQ147: X
E148: Knee Pads | AQ148: X
AQ149: X
C150: TR | D150: Troxell - All Other | F150: TX17809 | H150: 17-809 Elite Professional Rubber Knee Pad (similar to KN-1) | Q150: Troxell | S150: Stock | T150: new | U150: =IF(Suggested="Yes",'Price List'!AC150,'Price List'!AI150) -> 21.55 | V150: EA | W150: =+Instructions!$B$3 -> N | Y150: =+Instructions!$D$22 -> 0 | Z150: =ROUND($AC150*(1-Y150)+0.004999,2) -> 21.55 | AB150: YES | AC150: 21.55 | AD150: =+Y150 -> 0 | AE150: =+Z150 -> 21.55 | AF150: =(AI150-AE150)/AI150 -> 0 | AH150: =+C150 -> TR | AI150: =SUM(AL150:AN150)+AG150 -> 21.55 | AL150: =ROUND(AE150/(1-VLOOKUP(AH150,Group,2,FALSE)),2) -> 21.55 | AM150: =IF(VLOOKUP(AH150,Group,3,FALSE)="YES",VLOOKUP(ROUND(ROUND(AL150,1)-AL150,2),Round,2,FALSE)+VLOOKUP(AH150,Group,4,FALSE),0) -> 0 | AN150: =IF(VLOOKUP(AH150,Group,5,FALSE)="",0,ROUND(AL150-0.04999,1)-AL150+AO150) -> 0 | AO150: =IF(VLOOKUP(AH150,Group,5,FALSE)="","",VLOOKUP(AH150,Group,5,FALSE)) ->  | AQ150: X
AQ151: X
A152: 17-209 | C152: TR | D152: Troxell - All Other | F152: TX17209 | H152: 17-209 | I152: Super Soft Knee Pads | Q152: Troxell | S152: Stock | U152: =IF(Suggested="Yes",'Price List'!AC152,'Price List'!AI152) -> 34.45 | V152: EA | W152: =+Instructions!$B$3 -> N | Y152: =+Instructions!$D$22 -> 0 | Z152: =ROUND($AC152*(1-Y152)+0.004999,2) -> 34.45 | AB152: YES | AC152: 34.45 | AD152: 0 | AE152: 34.45 | AF152: =(AI152-AE152)/AI152 -> 0 | AH152: =+C152 -> TR | AI152: =SUM(AL152:AN152)+AG152 -> 34.45 | AL152: =ROUND(AE152/(1-VLOOKUP(AH152,Group,2,FALSE)),2) -> 34.45 | AM152: =IF(VLOOKUP(AH152,Group,3,FALSE)="YES",VLOOKUP(ROUND(ROUND(AL152,1)-AL152,2),Round,2,FALSE)+VLOOKUP(AH152,Group,4,FALSE),0) -> 0 | AN152: =IF(VLOOKUP(AH152,Group,5,FALSE)="",0,ROUND(AL152-0.04999,1)-AL152+AO152) -> 0 | AO152: =IF(VLOOKUP(AH152,Group,5,FALSE)="","",VLOOKUP(AH152,Group,5,FALSE)) ->  | AQ152: X
A153: 17-209L | C153: TR | D153: Troxell - All Other | F153: TX17209L | H153: 17-209L | I153: Super Soft Knee Pads - Large | Q153: Troxell | S153: Stock | U153: =IF(Suggested="Yes",'Price List'!AC153,'Price List'!AI153) -> 44.95 | V153: EA | W153: =+Instructions!$B$3 -> N | Y153: =+Instructions!$D$22 -> 0 | Z153: 44.95 | AB153: YES | AC153: 44.95 | AD153: 0 | AE153: 44.95 | AF153: 0 | AH153: =+C153 -> TR | AI153: 44.95 | AL153: 44.95 | AM153: 0 | AN153: 0 | AQ153: X
AQ154: X
A155: F280150 | C155: RS | D155: RTC - All Other | F155: RSKNF280150 | H155: F280150 Fento Home Knee Pads | Q155: RTC | T155: new | U155: =IF(Suggested="Yes",'Price List'!AC155,'Price List'!AI155) -> 33.95 | V155: EA | W155: =+Instructions!$B$3 -> N | Y155: =+Instructions!$D$22 -> 0 | Z155: =ROUND($AC155*(1-Y155)+0.004999,2) -> 33.95 | AB155: new | AC155: 33.95 | AD155: =+Y155 -> 0 | AE155: =+Z155 -> 33.95 | AF155: =(AI155-AE155)/AI155 -> 0 | AH155: =+C155 -> RS | AI155: =SUM(AL155:AN155)+AG155 -> 33.95 | AL155: =ROUND(AE155/(1-VLOOKUP(AH155,Group,2,FALSE)),2) -> 33.95 | AM155: =IF(VLOOKUP(AH155,Group,3,FALSE)="YES",VLOOKUP(ROUND(ROUND(AL155,1)-AL155,2),Round,2,FALSE)+VLOOKUP(AH155,Group,4,FALSE),0) -> 0 | AN155: =IF(VLOOKUP(AH155,Group,5,FALSE)="",0,ROUND(AL155-0.04999,1)-AL155+AO155) -> 0 | AO155: =IF(VLOOKUP(AH155,Group,5,FALSE)="","",VLOOKUP(AH155,Group,5,FALSE)) ->  | AQ155: X
AQ156: X
A157: F280220 | C157: RS | D157: RTC - All Other | F157: RSKNF280220 | H157: F280220 Fento Knee Pads | Q157: RTC | S157: Stock | T157: new | U157: =IF(Suggested="Yes",'Price List'!AC157,'Price List'!AI157) -> 89 | V157: EA | W157: =+Instructions!$B$3 -> N | Y157: =+Instructions!$D$22 -> 0 | Z157: =ROUND($AC157*(1-Y157)+0.004999,2) -> 89 | AB157: new | AC157: 89 | AD157: =+Y157 -> 0 | AE157: =+Z157 -> 89 | AF157: =(AI157-AE157)/AI157 -> 0 | AH157: =+C157 -> RS | AI157: =SUM(AL157:AN157)+AG157 -> 89 | AL157: =ROUND(AE157/(1-VLOOKUP(AH157,Group,2,FALSE)),2) -> 89 | AM157: =IF(VLOOKUP(AH157,Group,3,FALSE)="YES",VLOOKUP(ROUND(ROUND(AL157,1)-AL157,2),Round,2,FALSE)+VLOOKUP(AH157,Group,4,FALSE),0) -> 0 | AN157: =IF(VLOOKUP(AH157,Group,5,FALSE)="",0,ROUND(AL157-0.04999,1)-AL157+AO157) -> 0 | AO157: =IF(VLOOKUP(AH157,Group,5,FALSE)="","",VLOOKUP(AH157,Group,5,FALSE)) ->  | AQ157: X
A158: P280003 | C158: RS | D158: RTC - All Other | F158: RSKNP280003 | I158: P280003 Replacement Knee Pad Inlay for Fento F280220 | Q158: RTC | T158: new | U158: =IF(Suggested="Yes",'Price List'!AC158,'Price List'!AI158) -> 31.05 | V158: EA | W158: =+Instructions!$B$3 -> N | Y158: =+Instructions!$D$22 -> 0 | Z158: 31.05 | AB158: new | AC158: 31.05 | AD158: =+Y158 -> 0 | AE158: =+Z158 -> 31.05 | AF158: =(AI158-AE158)/AI158 -> 0 | AH158: =+C158 -> RS | AI158: =SUM(AL158:AN158)+AG158 -> 31.05 | AL158: 31.05 | AM158: 0 | AN158: 0 | AQ158: X
A159: E280201 | C159: RS | D159: RTC - All Other | F159: RSKNE280201 | I159: E280201 Replacement Elastic Straps for Fento F280220 | Q159: RTC | T159: new | U159: =IF(Suggested="Yes",'Price List'!AC159,'Price List'!AI159) -> 15 | V159: EA | W159: =+Instructions!$B$3 -> N | Y159: =+Instructions!$D$22 -> 0 | Z159: 15 | AB159: new | AC159: 15 | AD159: 0 | AE159: 15 | AF159: 0 | AH159: =+C159 -> RS | AI159: 15 | AL159: 15 | AM159: 0 | AN159: 0 | AQ159: X
AQ160: X
A161: F280440 | C161: RS | D161: RTC - All Other | F161: RSKNF280440 | H161: F280440 Max Knee Pads | Q161: RTC | T161: new | U161: =IF(Suggested="Yes",'Price List'!AC161,'Price List'!AI161) -> 129.95 | V161: EA | W161: =+Instructions!$B$3 -> N | Y161: =+Instructions!$D$22 -> 0 | Z161: 129.95 | AB161: new | AC161: 129.95 | AD161: =+Y161 -> 0 | AE161: =+Z161 -> 129.95 | AF161: =(AI161-AE161)/AI161 -> 0 | AH161: =+C161 -> RS | AI161: =SUM(AL161:AN161)+AG161 -> 129.95 | AL161: 129.95 | AM161: 0 | AN161: 0 | AQ161: X
A162: P280004 | C162: RS | D162: RTC - All Other | F162: RSKNP280004 | I162: P280004 Replacement Knee Pad Inlay for Fento F280440 | Q162: RTC | T162: new | U162: =IF(Suggested="Yes",'Price List'!AC162,'Price List'!AI162) -> 42.85 | V162: EA | W162: =+Instructions!$B$3 -> N | Y162: =+Instructions!$D$22 -> 0 | Z162: 42.85 | AB162: new | AC162: 42.85 | AD162: =+Y162 -> 0 | AE162: =+Z162 -> 42.85 | AF162: =(AI162-AE162)/AI162 -> 0 | AH162: =+C162 -> RS | AI162: =SUM(AL162:AN162)+AG162 -> 42.85 | AL162: 42.85 | AM162: 0 | AN162: 0 | AQ162: X
A163: E280401 | C163: RS | D163: RTC - All Other | F163: RSKNE280401 | I163: E280401 Replacement Elastic Straps for Fento F280440 | Q163: RTC | T163: new | U163: =IF(Suggested="Yes",'Price List'!AC163,'Price List'!AI163) -> 30 | V163: EA | W163: =+Instructions!$B$3 -> N | Y163: =+Instructions!$D$22 -> 0 | Z163: 30 | AB163: new | AC163: 30 | AD163: 0 | AE163: 30 | AF163: 0 | AH163: =+C163 -> RS | AI163: 30 | AL163: 30 | AM163: 0 | AN163: 0 | AQ163: X
AQ164: X
E165: Wet Saws | AQ165: X
AQ166: X
F167: Saws - Cutting Length 48" and greater | AQ167: X
A168: DS2501500 | C168: RU1 | D168: Rubi - Saws/Cutters | F168: RUDS2501500 | H168: DS250N 1500 Bridge Saw w/ Folding Legs - ZERO DUST | Q168: Rubi | S168: n/s | U168: =IF(Suggested="Yes",'Price List'!AC168,'Price List'!AI168) -> 3359 | V168: EA | W168: =+Instructions!$B$3 -> N | Y168: =+Instructions!$D$22 -> 0 | Z168: =ROUND($AC168*(1-Y168)+0.004999,2) -> 3359 | AB168: YES | AC168: 3359 | AD168: =+Y168 -> 0 | AE168: =+Z168 -> 3359 | AF168: =(AI168-AE168)/AI168 -> 0 | AH168: =+C168 -> RU1 | AI168: =SUM(AL168:AN168)+AG168 -> 3359 | AL168: =ROUND(AE168/(1-VLOOKUP(AH168,Group,2,FALSE)),2) -> 3359 | AM168: =IF(VLOOKUP(AH168,Group,3,FALSE)="YES",VLOOKUP(ROUND(ROUND(AL168,1)-AL168,2),Round,2,FALSE)+VLOOKUP(AH168,Group,4,FALSE),0) -> 0 | AN168: =IF(VLOOKUP(AH168,Group,5,FALSE)="",0,ROUND(AL168-0.04999,1)-AL168+AO168) -> 0 | AO168: =IF(VLOOKUP(AH168,Group,5,FALSE)="","",VLOOKUP(AH168,Group,5,FALSE)) ->  | AQ168: X
G169: - 61" cutting length / 42" diagonal | L169: - Dimensions: 87" x 29" x 51"
G170: - Weight = 242 lbs | L170: - Precise Miter Cuts | AQ170: X
G171: - 10" Saw Blade Capacity - 1" Arbor | L171: - Plunge Cuts | AQ171: X
G172: - Horsepower = 3 hp | L172: - Folding Legs w/ Wheels for easy transportation | AQ172: X
AQ173: X
A174: DS2501300 | C174: RU1 | D174: Rubi - Saws/Cutters | F174: RUDS2501300 | H174: DS250N 1300 Bridge Saw w/ Folding Legs - ZERO DUST | Q174: Rubi | S174: n/s | U174: =IF(Suggested="Yes",'Price List'!AC174,'Price List'!AI174) -> 3159 | V174: EA | W174: =+Instructions!$B$3 -> N | Y174: =+Instructions!$D$22 -> 0 | Z174: =ROUND($AC174*(1-Y174)+0.004999,2) -> 3159 | AB174: YES | AC174: 3159 | AD174: =+Y174 -> 0 | AE174: =+Z174 -> 3159 | AF174: =(AI174-AE174)/AI174 -> 0 | AH174: =+C174 -> RU1 | AI174: =SUM(AL174:AN174)+AG174 -> 3159 | AL174: =ROUND(AE174/(1-VLOOKUP(AH174,Group,2,FALSE)),2) -> 3159 | AM174: =IF(VLOOKUP(AH174,Group,3,FALSE)="YES",VLOOKUP(ROUND(ROUND(AL174,1)-AL174,2),Round,2,FALSE)+VLOOKUP(AH174,Group,4,FALSE),0) -> 0 | AN174: =IF(VLOOKUP(AH174,Group,5,FALSE)="",0,ROUND(AL174-0.04999,1)-AL174+AO174) -> 0 | AO174: =IF(VLOOKUP(AH174,Group,5,FALSE)="","",VLOOKUP(AH174,Group,5,FALSE)) ->  | AQ174: X
G175: - 51" cutting length / 37" diag cut | L175: - Dimensions: 79" x 29" x 51"
G176: - Weight = 275 lbs | L176: - Precise Miter Cuts | AQ176: X
G177: - 10" Saw Blade Capacity - 1" Arbor | L177: - Plunge Cuts | AQ177: X
G178: - Horsepower = 3 hp | L178: - Folding Legs w/ Wheels for easy transportation | AQ178: X
AQ179: X
A180: DC2501200 | C180: RU1 | D180: Rubi - Saws/Cutters | F180: RUDC2501200 | H180: DC250 1200 Python Bridge Saw w/ Folding Legs | Q180: Rubi | S180: Stock | U180: =IF(Suggested="Yes",'Price List'!AC180,'Price List'!AI180) -> 1699 | V180: EA | W180: =+Instructions!$B$3 -> N | Y180: =+Instructions!$D$22 -> 0 | Z180: =ROUND($AC180*(1-Y180)+0.004999,2) -> 1699 | AB180: YES | AC180: 1699 | AD180: =+Y180 -> 0 | AE180: =+Z180 -> 1699 | AF180: =(AI180-AE180)/AI180 -> 0 | AH180: =+C180 -> RU1 | AI180: =SUM(AL180:AN180)+AG180 -> 1699 | AL180: =ROUND(AE180/(1-VLOOKUP(AH180,Group,2,FALSE)),2) -> 1699 | AM180: =IF(VLOOKUP(AH180,Group,3,FALSE)="YES",VLOOKUP(ROUND(ROUND(AL180,1)-AL180,2),Round,2,FALSE)+VLOOKUP(AH180,Group,4,FALSE),0) -> 0 | AN180: =IF(VLOOKUP(AH180,Group,5,FALSE)="",0,ROUND(AL180-0.04999,1)-AL180+AO180) -> 0 | AO180: =IF(VLOOKUP(AH180,Group,5,FALSE)="","",VLOOKUP(AH180,Group,5,FALSE)) ->  | AQ180: X
G181: - 48" cutting length / 33" diag cut | L181: - Dimensions: 67" x 31" x 51"
G182: - Weight = 132 lbs | L182: - Precise Miter Cuts | AQ182: X
G183: - 10" Saw Blade Capacity - 5/8" Arbor | L183: - Plunge Cuts | AQ183: X
G184: - Horsepower = 1.5 hp | L184: - Folding Legs w/ Wheels for easy transportation | AQ184: X
G185: - Removable Table for easy cleaning | AQ185: X
AQ186: X
F187: Saws - Cutting Length 36" to 48" | AQ187: X
A188: DC250/850 | C188: RU1 | D188: Rubi - Saws/Cutters | F188: RUDC250/850 | H188: DC250 850 Bridge Saw w/ Folding Legs | Q188: Rubi | S188: n/s | U188: =IF(Suggested="Yes",'Price List'!AC188,'Price List'!AI188) -> 1359 | V188: EA | W188: =+Instructions!$B$3 -> N | Y188: =+Instructions!$D$22 -> 0 | Z188: =ROUND($AC188*(1-Y188)+0.004999,2) -> 1359 | AB188: YES | AC188: 1359 | AD188: =+Y188 -> 0 | AE188: =+Z188 -> 1359 | AF188: =(AI188-AE188)/AI188 -> 0 | AH188: =+C188 -> RU1 | AI188: =SUM(AL188:AN188)+AG188 -> 1359 | AL188: =ROUND(AE188/(1-VLOOKUP(AH188,Group,2,FALSE)),2) -> 1359 | AM188: =IF(VLOOKUP(AH188,Group,3,FALSE)="YES",VLOOKUP(ROUND(ROUND(AL188,1)-AL188,2),Round,2,FALSE)+VLOOKUP(AH188,Group,4,FALSE),0) -> 0 | AN188: =IF(VLOOKUP(AH188,Group,5,FALSE)="",0,ROUND(AL188-0.04999,1)-AL188+AO188) -> 0 | AO188: =IF(VLOOKUP(AH188,Group,5,FALSE)="","",VLOOKUP(AH188,Group,5,FALSE)) ->  | AQ188: X
G189: - 38" cutting length / 27" diag cut | L189: - Dimensions: 58" x 31" x 51"
G190: - Weight = 121 lbs | L190: - Precise Miter Cuts | AQ190: X
G191: - 10" Saw Blade Capacity - 5/8" Arbor | L191: - Plunge Cuts | AQ191: X
G192: - Horsepower = 1.5 hp | L192: - Folding Legs w/ Wheels for easy transportation | AQ192: X
G193: - Removable Table for easy cleaning | AQ193: X
AQ194: X
F195: Saws - Cutting Length between 20" to 36" | AQ195: X
A196: DT10MAX | C196: RU1 | D196: Rubi - Saws/Cutters | F196: RUDT10MAX | H196: DT-10 MAX Wet Saw w/ Folding Legs | Q196: Rubi | S196: Stock | U196: =IF(Suggested="Yes",'Price List'!AC196,'Price List'!AI196) -> 1099 | V196: EA | W196: =+Instructions!$B$3 -> N | Y196: =+Instructions!$D$22 -> 0 | Z196: =ROUND($AC196*(1-Y196)+0.004999,2) -> 1099 | AC196: 1099 | AD196: =+Y196 -> 0 | AE196: =+Z196 -> 1099 | AF196: =(AI196-AE196)/AI196 -> 0 | AH196: =+C196 -> RU1 | AI196: =SUM(AL196:AN196)+AG196 -> 1099 | AL196: =ROUND(AE196/(1-VLOOKUP(AH196,Group,2,FALSE)),2) -> 1099 | AM196: =IF(VLOOKUP(AH196,Group,3,FALSE)="YES",VLOOKUP(ROUND(ROUND(AL196,1)-AL196,2),Round,2,FALSE)+VLOOKUP(AH196,Group,4,FALSE),0) -> 0 | AN196: =IF(VLOOKUP(AH196,Group,5,FALSE)="",0,ROUND(AL196-0.04999,1)-AL196+AO196) -> 0 | AO196: =IF(VLOOKUP(AH196,Group,5,FALSE)="","",VLOOKUP(AH196,Group,5,FALSE)) ->  | AQ196: X
G197: - 36" cutting length / 24" diag cut | L197: - Dimensions: 63" x 37" x 48"
G198: - Weight = 105 lbs | L198: - Precise Miter Cuts | AQ198: X
G199: - 10" Saw Blade Capacity - 5/8" Arbor | L199: - Plunge Cuts | AQ199: X
G200: - Horsepower = 2.0 hp | L200: - Folding Legs w/ Wheels for easy transportation | AQ200: X
... 315 more rows

Sheet Websites
A1: Easy Access Website links
A3: ConestogaTile's Website | B3: www.conestogatile.com
A5: Manufacturer's Home Page
A6: Barwalt | B6: www.barwalt.com
A7: European Tile Masters (ETMM) | B7: www.europeantilemasters
A8: IQ Saws | B8: https://iqpowertools.com/
A9: Mark E. Ind. | B9: www.markeindustries.com
A10: MK Diamond | B10: www.mkdiamond.com
A11: Progress Profiles | B11: www.progressprofiles.com
A12: Rubi Tools | B12: www.rubi.com
A13: Sigma (RTC) | B13: www.rtcproducts.com
A14: Troxell Tools | B14: https://troxellusa.com/
A16: Product | B16: Direct Website Link

Sheet Updates
B1: Price List
A2: Mfg | B2: Date | C2: Description
A4: New Products
A16: Discontinued Products
